Cogmind - Beta 17.1 @@@ ROGUE MODE // 2026.09.23 @ 12:31:23 Player: 4R-ZE3 Result: Escaped! Performance ------------- Evolutions (9) 4500 Regions Visited (34) 6800 Robots Destroyed (592) 2960 Value Destroyed (36276) 36276 Prototype IDs (54) 1080 Alien Tech Used (9) 1800 Bonus (22134) 22134 TOTAL SCORE: 75550 Bonus ------- High Alert Combat Kills 6199 Follower Combat Kills 3280 Hunted by Unchained 500 Entered Garrisons 1400 Used RIF Installer 4000 Network Hubs Disabled 200 Built Enhanced Grunts 300 A7 Reached Mainframe 300 Met R17 at Cetus 500 Met R17 at Research 2000 Scanned by Researcher 500 Win 3000 Friendly Fire -45 Cogmind --------- Core Integrity 262/1600 Matter 19/300 Energy 42/100 System Corruption 25% Temperature Cool (10) Movement Walking (120) +NEM 1 Location To Epsilon Eridani Parts ------- > --- POWER (3) -------- (None) > --- PROPULSION (8) --- Centrium Leg Centrium Leg Centrium Leg Centrium Leg Centrium Leg High-density Centrium Leg High-density Centrium Leg > --- UTILITY (10) ----- Advanced Heat Sink Huge Storage Unit SHELL Armor Spacefold Activator > --- WEAPON (4) ------- Compact HERF Cannon Nova Cannon Hypercooled Linear Accelerator > --- INVENTORY (25) --- Centrium Leg Centrium Leg Centrium Leg Centrium Leg Heavy Shield Leg High-density Centrium Leg Advanced Matter Compressor (400) Advanced Sensor Array Core Analyzer Advanced Kinecellerator Experimental Reaction Control System EM Shield Advanced Force Field Advanced Point Defense System Dimensional Node Initializer High-powered Transdimensional Reconstructor Core Reset Matrix Subatomic Replicator Omega Cannon Advanced Remote Datajack Peak State ------------ > --- POWER ------------ Particle Reactor Quantum Reactor Quantum Reactor > --- PROPULSION ------- Centrium Leg Centrium Leg Centrium Leg Centrium Leg Centrium Leg High-density Centrium Leg High-density Centrium Leg High-density Centrium Leg > --- UTILITY ---------- 2N-1CE's Frost Array Huge Storage Unit Advanced Signal Interpreter Advanced Targeting Computer Experimental Phase Shifter SHELL Armor Experimental EM Shield AEGIS Remote Shield > --- WEAPON ----------- Heavy Quantum Rifle Perforator > --- INVENTORY -------- Antimatter Reactor Centrium Leg Centrium Leg Centrium Leg Centrium Leg Centrium Leg High-density Centrium Leg Advanced Matter Compressor Advanced Sensor Array Advanced Kinecellerator Experimental Reaction Control System Advanced Phase Shifter Relay Coupler [NC] Dimensional Node Initializer Transdimensional Reconstructor High-powered Transdimensional Reconstructor Core Reset Matrix Subatomic Replicator Spacefold Activator Hypercooled Linear Accelerator Hypercooled Linear Accelerator Omega Cannon Advanced Remote Datajack Improved Plasma Cutter [Rating: 243] Favorites ----------- Power Quantum Reactor Engine Ion Engine Power Core Nuclear Core Reactor Quantum Reactor Propulsion Centrium Leg Leg Centrium Leg Utility Huge Storage Unit Device Improved Cooling System Storage Huge Storage Unit Processor Advanced Signal Interpreter Hackware Relay Coupler [NC] Protection SHELL Armor Artifact Spacefold Activator Weapon Cooled Plasma Cannon Energy Gun Force Rifle Energy Cannon Cooled Plasma Cannon Ballistic Gun Advanced KE Penetrator Ballistic Cannon Hypervelocity Mass Driver Launcher Grenade Launcher Special Weapon Remote Datajack Impact Weapon Heavy Flail Special Melee Weapon Improved Datajack Build | -11 -10 -10 -9 -9 -9 -8 -8 -8 -7 -7 -7 -7 -7 -7 -6 -6 -5 -5 -5 -5 -4 -4 -4 -4 -4 -4 -4 -3 -3 -2 -2 -2 -1 -1 ------- Run | Yrd Mat Min Mat Sto Gar Mat Gar Mat Fac Was Fac Gar Fac Gar Fac Gar Fac Gar Fac Gar Fac Was Fac Ext Cet Arc Hub Res Qua Res Tes Sec Acc Com Slots Evolved 18 | . . . 2 . . 2 . . 2 . . . . . 2 . 2 . . . 2 . . . . . . 2 . 2 . . 2 . Power 2 | . . . . . . . . . . . . . . . . . 1 . . . 1 . . . . . . . . . . . . . Propulsion 6 | . . . 1 . . 1 . . 1 . . . . . 1 . . . . . 1 . . . . . . 1 . . . . . . Utility 8 | . . . . . . 1 . . 1 . . . . . 1 . 1 . . . . . . . . . . 1 . 2 . . 1 . Weapon 2 | . . . 1 . . . . . . . . . . . . . . . . . . . . . . . . . . . . . 1 . Parts Attached 400 | . 11 1 6 5 8 36 6 15 3 6 17 3 16 5 20 8 3 19 19 8 5 1 20 19 4 11 12 16 43 10 10 6 5 23 Power 40 | . 1 . 1 . 1 3 1 . . 2 . . . . . . 1 3 . 1 2 1 4 1 1 1 . 1 6 1 . 2 1 5 Engine 5 | . 1 . . . . 3 1 . . . . . . . . . . . . . . . . . . . . . . . . . . . Core 4 | . . . 1 . 1 . . . . . . . . . . . . 1 . . . . 1 . . . . . . . . . . . Reactor 31 | . . . . . . . . . . 2 . . . . . . 1 2 . 1 2 1 3 1 1 1 . 1 6 1 . 2 1 5 Propulsion 99 | . . 1 3 . 4 12 2 6 1 . 4 . 3 3 7 2 . 6 1 2 2 . 2 8 . . 2 6 8 5 3 1 . 5 Treads . | . . . . . . . . . . . . . . . . . . . . . . . . . . . . . . . . . . . Leg 99 | . . 1 3 . 4 12 2 6 1 . 4 . 3 3 7 2 . 6 1 2 2 . 2 8 . . 2 6 8 5 3 1 . 5 Wheel . | . . . . . . . . . . . . . . . . . . . . . . . . . . . . . . . . . . . Hover . | . . . . . . . . . . . . . . . . . . . . . . . . . . . . . . . . . . . Flight . | . . . . . . . . . . . . . . . . . . . . . . . . . . . . . . . . . . . Utility 150 | . 5 . 1 1 1 7 2 4 2 4 8 1 4 2 8 6 2 8 10 4 1 . 7 4 2 6 7 8 14 4 4 2 4 7 Device 79 | . 3 . 1 . 1 3 2 3 1 3 4 . 2 . 4 1 . 3 4 . . . 2 2 1 5 6 7 8 3 3 . 1 6 Storage 11 | . 2 . . 1 . 1 . 1 . . 1 . . . 1 . . . 1 . . . . . . . . . 2 . . . 1 . Processor 11 | . . . . . . 1 . . 1 . . . . . . . 1 . . . 1 . . . 1 . 1 1 1 1 . . 1 1 Hackware 41 | . . . . . . 1 . . . 1 3 1 2 2 2 5 1 5 5 4 . . 5 1 . . . . 2 . . . 1 . Protection 5 | . . . . . . 1 . . . . . . . . 1 . . . . . . . . 1 . 1 . . . . 1 . . . Artifact 3 | . . . . . . . . . . . . . . . . . . . . . . . . . . . . . 1 . . 2 . . Weapon 111 | . 5 . 1 4 2 14 1 5 . . 5 2 9 . 5 . . 2 8 1 . . 7 6 1 4 3 1 15 . 3 1 . 6 Energy Gun 62 | . 4 . 1 2 2 11 1 5 . . 3 1 5 . 5 . . . 1 . . . 6 3 . . 3 . 6 . . . . 3 Energy Cannon 25 | . . . . . . . . . . . . 1 4 . . . . 1 6 1 . . . 1 1 . . 1 5 . . 1 . 3 Ballistic Gun 5 | . . . . 1 . . . . . . . . . . . . . . . . . . . . . 4 . . . . . . . . Ballistic Cannon 8 | . . . . . . . . . . . . . . . . . . . . . . . . 2 . . . . 4 . 2 . . . Launcher 2 | . 1 . . . . . . . . . 1 . . . . . . . . . . . . . . . . . . . . . . . Special Weapon 6 | . . . . . . 1 . . . . 1 . . . . . . 1 1 . . . 1 . . . . . . . 1 . . . Impact Weapon 2 | . . . . 1 . 1 . . . . . . . . . . . . . . . . . . . . . . . . . . . . Slashing Weapon . | . . . . . . . . . . . . . . . . . . . . . . . . . . . . . . . . . . . Piercing Weapon . | . . . . . . . . . . . . . . . . . . . . . . . . . . . . . . . . . . . Special Melee Weapon 1 | . . . . . . 1 . . . . . . . . . . . . . . . . . . . . . . . . . . . . Unidentified Prototypes 33 | . . . . 2 . 2 . 1 . . . . 2 . 2 . . 1 1 . . . 1 . . 1 5 . 4 . 5 4 1 1 Corrupted Parts 15 | . . . . . . . . . . . . . . . . . . . . . . . . . . 3 1 . 10 . 1 . . . System Corruption 98 | . . . . . . . . . . . . . . . . . . . . . . . . . . 12 3 . 82 . 1 . . . Parts Lost 95 | . . 1 1 1 6 8 2 . . . 3 5 . 2 1 . . 1 1 4 4 . 12 5 . . . . 7 . 3 . 5 23 Power 17 | . . . . . 1 . . . . . . . . . . . . 1 . 1 2 . 2 . . . . . 3 . . . 1 6 Propulsion 26 | . . 1 1 . 4 3 . . . . 1 2 . 2 . . . . . 2 1 . 2 3 . . . . 2 . . . . 2 Utility 26 | . . . . . 1 2 1 . . . . . . . 1 . . . 1 1 . . 2 2 . . . . 1 . 3 . 3 8 Weapon 26 | . . . . 1 . 3 1 . . . 2 3 . . . . . . . . 1 . 6 . . . . . 1 . . . 1 7 Highest Loss Streak 5 | . . 1 1 1 3 4 1 . . . 1 4 . 1 1 . . 1 1 2 4 . 4 4 . . . . 5 . 1 . 3 5 To Critical Strikes 1 | . . . . . . . . . . . . . . . . . . . . . . . . . . . . . . . . . . 1 Average Backups 19 | . 9 10 12 14 14 16 19 20 18 18 19 17 19 19 19 19 19 19 19 20 22 21 19 19 21 21 24 23 23 24 22 23 23 21 Power 1 | . . . 1 2 1 2 2 2 2 1 2 2 1 1 1 1 . . 2 2 2 1 . . 1 2 2 2 1 2 1 1 1 . Propulsion 2 | . 3 3 2 1 1 3 2 2 2 2 2 2 2 2 1 2 2 1 1 2 2 2 2 2 2 2 2 1 2 2 3 3 5 5 Utility 9 | . 1 3 3 2 1 3 6 9 9 8 9 9 9 9 10 10 10 12 10 9 11 13 13 12 12 11 14 14 12 7 6 8 7 7 Weapon 4 | . 3 4 5 7 9 6 5 4 4 5 4 2 4 5 5 4 5 4 4 4 3 2 1 1 3 4 4 3 4 5 4 3 3 2 Tool/Special . | . . . . . . . . . . . . . . . . . . . . . . . . . . . . . . . . . . . Unused Backups 103 | . 14 1 . 2 1 13 4 4 . 4 2 . 3 1 5 1 . 5 4 . 1 3 1 1 1 . 2 2 10 . 3 2 . 13 Power 11 | . 1 . . . . 2 . 1 . 3 . . . . 1 . . . . . . 1 . . 1 . 1 . . . . . . . Propulsion 32 | . 7 1 . . 1 4 2 2 . . . . 2 . 1 . . 1 2 . 1 1 . . . . . 2 . . . 1 . 4 Utility 28 | . 1 . . 1 . 2 1 1 . 1 1 . . 1 . 1 . 2 . . . 1 . 1 . . 1 . 7 . . 1 . 5 Weapon 28 | . 5 . . 1 . 5 1 . . . 1 . 1 . 3 . . 2 2 . . . 1 . . . . . 3 . 3 . . . Tool/Special 4 | . . . . . . . . . . . . . . . . . . . . . . . . . . . . . . . . . . 4 Average Slot Usage (%) 92 | . 97 99 99 99 99 95 99 99 97 98 99 98 99 97 99 99 99 96 86 86 83 85 87 87 82 76 77 93 94 94 93 85 83 77 Engine 1 | . 14 14 4 . . 8 9 9 7 4 . . . . . . 1 . . . . . . . . . . . . . . . . . Reactor 8 | . . . . . . . . . . 2 7 7 7 7 6 6 9 6 11 10 9 11 13 14 15 15 15 14 13 13 13 13 11 9 Leg 31 | . 28 27 33 33 32 35 36 36 38 38 37 37 38 37 40 40 35 33 23 22 25 26 25 25 26 26 26 32 34 34 34 34 32 31 Device 11 | . 11 14 10 11 10 8 17 18 15 12 11 6 4 5 9 17 9 9 11 14 8 5 4 6 9 7 7 17 18 25 20 12 12 11 Storage 6 | . 14 14 11 11 11 9 9 9 7 7 7 7 7 7 6 6 5 5 5 5 5 5 5 5 5 5 5 4 4 4 4 4 4 4 Processor 4 | . . . . . . . . . 4 7 7 7 7 7 6 . 4 5 5 2 1 5 5 4 . . 2 8 7 4 8 8 9 5 Hackware 5 | . . . . . . . . . . 1 3 7 9 9 7 2 11 11 10 10 15 15 15 13 5 . . . 1 . . . 1 1 Protection 1 | . . . . . . 4 . . . . . . . . 1 6 . . . . . . . . 5 5 4 . . . . 4 4 4 Energy Gun 12 | . 25 27 32 29 28 23 22 26 23 21 20 16 13 19 17 18 13 14 5 . . . 6 5 8 . 2 13 7 4 3 4 4 2 Energy Cannon 2 | . . . . . . . . . . . . 3 5 . . . . . 7 16 14 12 6 1 4 1 . . 5 8 3 . . 2 Peak Build Rating 243 | . 12 11 17 19 19 41 41 42 47 54 55 51 56 55 73 74 78 124 126 126 119 123 131 143 148 153 167 168 189 208 235 239 243 235 Average Rating 104 | . 9 10 15 17 18 30 39 41 46 48 52 47 53 51 65 71 76 85 119 113 116 116 122 120 143 149 154 162 162 201 211 232 235 210 On Entrance 93 | 6 6 11 11 16 19 18 40 38 41 47 53 50 48 54 54 71 67 76 124 123 110 114 123 123 143 147 152 156 162 182 198 235 229 221 Avg Prop Armor Cover (%) 9 | . . . . . . . . . . . 5 . . . . . . . 15 . . . . . . . . . . . . 1 . 3 Naked Turns . | . . . . . . . . . . . . . . . . . . . . . . . . . . . . . . . . . . . Heaviest Build 220 | 13 33 33 38 38 38 65 66 59 57 67 72 72 80 72 78 81 90 111 160 162 159 164 164 171 181 201 199 176 184 183 214 220 215 217 Greatest Support 246 | 20 20 20 30 30 30 71 71 71 84 84 84 84 94 84 114 112 107 180 180 173 155 155 160 200 200 200 208 233 231 244 246 246 246 246 Greatest Overweight (x) 1 | . 1 1 1 1 1 1 . . . . . . . 1 . . . . 1 1 1 1 1 1 . 1 . . 1 . . . . . Average Overweight (x) . | . . 1 1 1 1 . . . . . . . . . . . . . . . . . . . . . . . . . . . . . Largest Inventory Capacity 25 | . 15 15 15 15 15 20 20 20 20 20 20 20 20 20 20 20 20 20 25 25 25 25 25 25 25 25 25 25 25 25 25 25 25 25 Average Capacity 21 | . 12 15 15 15 15 17 20 20 20 20 20 20 20 20 20 20 20 20 23 25 25 25 25 25 25 25 25 25 25 25 25 25 25 25 Most Carried 25 | . 11 12 15 15 15 20 20 20 19 20 20 18 20 20 20 20 20 20 25 25 25 25 25 25 25 25 25 25 25 25 25 25 25 25 Average Carried 20 | . 9 10 12 14 14 16 19 19 18 18 19 17 19 19 19 19 19 19 22 23 24 24 24 23 24 22 24 24 24 24 24 24 24 23 Final Capacity 25 | 8 15 15 15 15 15 20 20 20 20 20 20 20 20 20 20 20 20 20 25 25 25 25 25 25 25 25 25 25 25 25 25 25 25 25 Final Carried 25 | 6 11 12 12 15 15 16 20 20 19 20 18 17 20 20 20 20 20 20 23 25 24 25 23 25 25 25 25 25 25 25 25 24 23 22 Class Distribution -------------------- 12% | Scavenger-Gunner 11% | Botlord-Gunner 11% | Scavenger-Tank 10% | Mutant 9% | Botlord-Skirmisher 9% | Bothacker-Skirmisher 8% | Bothacker-Gunner 5% | Botlord-Tank 5% | Gunner 4% | Scavenger-Skirmisher 3% | Bothacker-Tank Dominant Class ---------------- Mutant | -10/Materials Mutant | -10/Mines Gunner | -9/Materials Gunner | -9/Storage Gunner | -9/Garrison Mutant | -8/Materials Scavenger-Gunner | -8/Garrison Bothacker-Gunner | -8/Materials Bothacker-Skirmisher | -7/Factory Bothacker-Gunner | -7/Waste Bothacker-Skirmisher | -7/Factory Bothacker-Gunner | -7/Garrison Bothacker-Skirmisher | -7/Factory Bothacker-Gunner | -7/Garrison Bothacker-Skirmisher | -6/Factory Bothacker-Tank | -6/Garrison Botlord-Skirmisher | -5/Factory Botlord-Gunner | -5/Garrison Botlord-Skirmisher | -5/Factory Botlord-Tank | -5/Garrison Botlord-Tank | -4/Factory Botlord-Gunner | -4/Waste Botlord-Gunner | -4/Factory Botlord-Skirmisher | -4/Extension Commander-Tank | -4/Cetus Scavenger-Tank | -4/Archives Scavenger-Tank | -4/Hub_04(d) Scavenger-Gunner | -3/Research Scavenger-Skirmisher | -3/Quarantine Scavenger-Gunner | -2/Research Scavenger-Gunner | -2/Testing Scavenger-Gunner | -2/Section 7 Scavenger-Skirmisher | -1/Access Scavenger-Gunner | -1/Command Resources | -11 -10 -10 -9 -9 -9 -8 -8 -8 -7 -7 -7 -7 -7 -7 -6 -6 -5 -5 -5 -5 -4 -4 -4 -4 -4 -4 -4 -3 -3 -2 -2 -2 -1 -1 ----------- Run | Yrd Mat Min Mat Sto Gar Mat Gar Mat Fac Was Fac Gar Fac Gar Fac Gar Fac Gar Fac Gar Fac Was Fac Ext Cet Arc Hub Res Qua Res Tes Sec Acc Com Matter Collected 21137 | 184 160 139 90 100 157 529 245 208 . 140 804 95 382 320 535 290 95 501 781 304 165 72 751 1017 326 326 669 160 1978 572 870 4192 2151 1829 Remotely . | . . . . . . . . . . . . . . . . . . . . . . . . . . . . . . . . . . . Salvage Created 33099 | . 749 51 524 93 744 1494 725 1200 . 1206 916 301 378 582 1455 1039 387 1288 1261 1356 566 222 1305 786 148 421 894 253 3454 616 2656 2297 2046 1686 Parts 1419 | . 59 4 36 5 48 70 20 57 . 19 29 19 13 19 49 41 15 51 58 36 30 4 39 24 4 26 45 19 180 24 110 100 88 78 Haulers Intercepted 12 | . 2 . . 2 . 2 . 4 . . . . . . . . . . . . . . . . . . 1 . . . . 1 . . Recyclers Shooed 12 | . 1 . 1 . . . . . . . . . . . 3 . . . 2 . . . 4 . . . . . 1 . . . . . Parts Field Recycled . | . . . . . . . . . . . . . . . . . . . . . . . . . . . . . . . . . . . Retrieved Matter . | . . . . . . . . . . . . . . . . . . . . . . . . . . . . . . . . . . . Parts Self-Destructed . | . . . . . . . . . . . . . . . . . . . . . . . . . . . . . . . . . . . Prevented . | . . . . . . . . . . . . . . . . . . . . . . . . . . . . . . . . . . . Parts Restored . | . . . . . . . . . . . . . . . . . . . . . . . . . . . . . . . . . . . Kills | -11 -10 -10 -9 -9 -9 -8 -8 -8 -7 -7 -7 -7 -7 -7 -6 -6 -5 -5 -5 -5 -4 -4 -4 -4 -4 -4 -4 -3 -3 -2 -2 -2 -1 -1 ------- Run | Yrd Mat Min Mat Sto Gar Mat Gar Mat Fac Was Fac Gar Fac Gar Fac Gar Fac Gar Fac Gar Fac Was Fac Ext Cet Arc Hub Res Qua Res Tes Sec Acc Com Combat Hostiles Destroyed 498 | . 16 8 19 . 25 31 16 16 . 5 17 11 7 12 15 15 6 12 18 21 8 1 20 11 2 2 10 4 50 7 29 35 23 26 Melee 2 | . . . . . . 2 . . . . . . . . . . . . . . . . . . . . . . . . . . . . Guns 278 | . 14 5 19 . 21 24 16 15 . 5 16 4 2 11 14 15 6 7 3 . . . 5 8 1 . 10 3 35 2 9 1 . 7 Cannons 136 | . . . . . . . . . . . . 2 5 . . . . . 10 19 6 . 9 2 . 1 . . . 1 11 33 23 14 AOE 17 | . 1 3 . . 4 . . . . . . 3 . . . . . 5 . . 1 . . . . . . . . . . . . . Classes Destroyed 24 | . 7 1 2 . 1 3 . 1 . 1 2 . . . . . . . . 2 . . . . . . 1 . 1 . 1 1 . . Worker 12 | . 1 . . . . 1 . . . . 1 . . . . . . . 1 . 2 . . . . . 1 . . . . . 4 1 Builder 17 | . 3 . 2 . . 1 . . . . . . . . 1 . 1 . 2 . 1 . . . . . 1 1 . . . 2 2 . Tunneler 2 | . . . . . . . . 1 . . . . . . . . . . . . . . . . . . 1 . . . . . . . Hauler 12 | . 2 . . 2 . 2 . 4 . . . . . . . . . . . . . . . . . . 1 . . . . 1 . . Recycler 11 | . 1 . . . . . . 1 . . 1 . . . 4 . . . . . . . . 1 . . 1 . . . 1 1 . . Mechanic 3 | . . . . . . . . . . . . . . . . . . . . 1 1 . . . . . . . . . . . 1 . Operator 16 | . . . . . . 1 . 1 . . . . . . . . . . . . . . . . . 8 1 . 3 . 2 . . . Watcher 19 | . 1 . 1 . . 3 . 1 . . 1 . 2 . . . . . 4 . . . 1 . . . . . 2 . 2 1 . . Swarmer 73 | . 5 3 4 . 7 7 3 . . . 3 9 2 . . . . 9 . . . . . 4 . . 3 . 3 . 4 2 . 5 Saboteur 1 | . . . . . . . . . . . . . . . . . . . . . . . . . . . . . . . . 1 . . Grunt 195 | . 11 2 11 . 11 16 9 12 . . 4 . 3 10 8 15 3 . 4 9 1 . 8 2 . . 1 . 11 . 8 16 12 8 Brawler 12 | . . . 1 . 2 . . . . . . 1 . . 2 . . . . . . . . . . . . . . . . 3 2 1 Duelist 8 | . . . . . . . . . . . 1 1 . 1 . . . . . . . . . . . . . . 1 . . 1 1 2 Protector 1 | . . . . . . . . . . . . . . . . . . . . . . . . . . . 1 . . . . . . . Researcher 3 | . . . . . . . . . . . . . . . . . . . . . . . . . . . . . . . 3 . . . Sentry 54 | . . . 3 . 4 5 4 4 . . 2 . 1 . 2 . . 3 3 5 1 . . 1 . 2 1 . 3 3 . 4 1 2 Specialist 7 | . . . . . 1 . . . . . . . . . . . . . . . . . . . . . . . 3 . 3 . . . Hunter 33 | . . . . . . 1 . . . . 3 . . . . . 3 . 2 . 2 . . 4 . . . 2 2 2 9 . 3 . Programmer 84 | . . . . . . . . . . . 4 . 1 2 3 . . . 9 5 5 . 12 . . . 1 2 15 2 5 6 4 8 Heavy 2 | . . . . . . 2 . . . . . . . . . . . . . . . . . . . . . . . . . . . . Compactor 6 | . . . . . . . . . . 5 . . . . . . . . . . . 1 . . . . . . . . . . . . Cetus Guard 2 | . . . . . . . . . . . . . . . . . . . . . . . . . 2 . . . . . . . . . Quarantine Guard 11 | . . . . . . . . . . . . . . . . . . . . . . . . . . . . . 11 . . . . . S7 Guard 2 | . . . . . . . . . . . . . . . . . . . . . . . . . . . . . . . . 2 . . Lightning 3 | . . . . . . . . . . . . . . . . . . . . . . . . . . . 3 . . . . . . . Striker 2 | . . . . . . . . . . . . . . . . . . . . 2 . . . . . . . . . . . . . . Alpha 7 1 | . . . . . . . . . . . . . . . . . . . . . . . . . . . . . 1 . . . . . Assembled 3 | . . 3 . . . . . . . . . . . . . . . . . . . . . . . . . . . . . . . . Best Kill Streak 21 | . 3 3 7 1 6 4 4 6 . 2 4 4 3 3 7 5 2 5 4 4 5 1 3 4 1 6 7 3 4 3 6 6 21 4 Combat Bots Only 14 | . 3 3 7 . 6 3 4 3 . 2 4 4 1 3 6 5 2 5 3 4 3 1 3 4 1 1 4 2 4 3 4 6 14 4 Max Kills in Single Turn 4 | . 1 3 1 1 4 2 1 2 . 1 1 3 1 1 2 1 1 3 3 1 2 1 1 2 1 1 2 1 2 1 1 3 3 2 Gunslinging 1 | . . . . . 1 1 . 1 . . . . . . 1 . . . . . . . . 1 . . 1 . 1 . . . . . Exploded 4 | . 1 3 . . 4 . . . . . . 3 . . . . . 3 . . 1 . . . . . . . . . . . . . Melee 1 | . . . . . . 1 . . . . . . . . . . . . . . . . . . . . . . . . . . . . Uniques/NPCs Destroyed . | . . . . . . . . . . . . . . . . . . . . . . . . . . . . . . . . . . . Combat | -11 -10 -10 -9 -9 -9 -8 -8 -8 -7 -7 -7 -7 -7 -7 -6 -6 -5 -5 -5 -5 -4 -4 -4 -4 -4 -4 -4 -3 -3 -2 -2 -2 -1 -1 -------- Run | Yrd Mat Min Mat Sto Gar Mat Gar Mat Fac Was Fac Gar Fac Gar Fac Gar Fac Gar Fac Gar Fac Was Fac Ext Cet Arc Hub Res Qua Res Tes Sec Acc Com Hostile Shots Fired 3624 | . 64 17 51 5 57 165 73 54 . . 160 37 39 41 75 41 30 80 150 90 85 . 194 86 23 11 50 48 349 44 176 232 258 839 Missed 1320 | . 16 10 11 1 12 39 23 18 . . 55 8 18 8 31 17 12 24 58 28 29 . 60 29 5 3 13 10 99 31 87 72 91 402 Deflected 18 | . . . . . . . . . . . . . . . . . . . 11 3 . . . . . . . . 4 . . . . . Hits 2304 | . 48 7 40 4 45 126 50 36 . . 105 29 21 33 44 24 18 56 92 62 56 . 134 57 18 8 37 38 250 13 89 160 167 437 Melee 43 | . . 1 . . 1 . . . . . 2 6 . . . . . . 2 22 . . . . . . . . . . . 1 3 5 Projectile 2261 | . 48 6 40 4 44 126 50 36 . . 103 23 21 33 44 24 18 56 90 40 56 . 134 57 18 8 37 38 250 13 89 159 164 432 Critical Strikes 117 | . 1 . . . . 5 2 . . . . 3 . 5 . 3 . 2 6 8 2 . 10 1 2 . 3 3 14 . 1 14 9 23 Actively Blocked 4 | . . . . . . . . . . . . . . . . . . . . . . . . . . . . . 4 . . . . . Part Disruptions 14 | . . . . . . . . . . . 1 . . . . . . . 1 . . . 3 . . . . . 3 . . 2 . 4 Actively Blocked 1 | . . . . . . . . . . . . . . . . . . . . . . . 1 . . . . . . . . . . . Damage Taken 39718 | . 481 143 491 52 617 2234 693 577 . . 1402 626 239 513 696 437 171 942 2135 2002 1181 . 2961 1122 399 260 455 594 2931 235 1354 1897 2306 9572 Core 3926 | . 126 31 59 . 106 310 82 48 . . 76 94 25 33 124 40 20 112 214 224 131 . 183 68 44 22 13 46 238 29 83 82 120 1143 Absorbed by Shields 7206 | . . . . . . . . . . . . . . . . . 167 333 . . . . . 67 121 . . 75 1650 . 465 1809 1126 1393 Ignored by Resistances 3243 | . . . . . . . . . . . . . . . . . . . . . . . . . . . 683 305 1124 90 408 378 255 . Regen/Repaired (Parts) 8305 | . . . 168 . . . . . . . 295 . 235 . 74 75 . 262 857 413 . . . 566 . 285 . . 518 . 30 722 592 3213 Core Remaining (%) 58 | 100 . 37 . . 58 . . 20 . . . . . 67 . 80 . . . 43 . . . . . . 59 . 78 . . 86 . 16 Volleys Fired 1957 | . 54 21 32 3 37 85 36 47 . 71 68 35 53 35 66 67 21 79 94 59 34 20 101 72 14 22 42 15 156 50 140 127 46 155 Largest 3 | . 2 2 3 3 3 3 3 3 . 3 3 3 3 3 3 3 3 3 3 3 3 3 3 3 3 3 3 3 3 1 1 1 1 3 Hottest 264 | . 130 130 195 195 186 191 189 191 . 185 201 201 240 169 240 240 180 240 245 105 105 105 201 146 195 220 105 264 264 81 100 100 100 155 Shots Fired 4077 | . 108 39 92 9 103 230 104 139 . 213 175 61 84 79 143 144 52 183 234 153 86 50 231 130 39 66 123 45 418 50 141 128 46 179 Gun 2823 | . 107 36 90 9 102 230 104 139 . 213 163 37 17 73 118 130 49 168 86 . . . 111 73 39 40 123 45 319 24 48 43 2 85 Cannon 1063 | . . . . . . . . . . . . 20 54 3 13 . . . 123 149 82 44 100 16 . 26 . . 98 26 88 85 42 94 Launcher 12 | . 1 3 2 . 1 . . . . . 1 2 . . . . . 2 . . . . . . . . . . . . . . . . Special 179 | . . . . . . . . . . . 11 2 13 3 12 14 3 13 25 4 4 6 20 41 . . . . 1 . 5 . 2 . Kinetic 394 | . 14 . . . . . . . . . . . . . . . . . . . . . . 14 . 32 123 . . . 11 85 42 73 Thermal 3191 | . 79 36 90 9 102 230 104 139 . 213 163 57 71 76 131 130 49 168 209 149 82 44 211 74 . 34 . 45 301 24 48 43 2 78 Explosive 12 | . 1 3 2 . 1 . . . . . 1 2 . . . . . 2 . . . . . . . . . . . . . . . . Electromagnetic 301 | . 14 . . . . . . . . . . . . . . . . . . . . . . 1 39 . . . 116 26 77 . . 28 Robot Hit Streak 75 | . 8 8 10 7 15 17 11 14 . 25 17 12 21 13 19 20 7 75 12 17 8 10 20 22 14 8 6 13 30 12 10 23 13 14 Robot Miss Streak 28 | . 7 8 5 6 4 4 2 3 . 3 3 3 2 2 4 3 2 3 28 5 5 2 7 3 3 3 8 3 3 3 4 9 12 8 Penetration Max 2 | . . . . . . . . . . . . . . . . . . . . . . . . . . . 1 . . . 1 2 1 1 Secondary Targets 58 | . 1 1 2 . 4 4 4 3 . 3 2 2 . 4 7 3 1 2 1 . . . 2 2 . . 2 1 7 . . . . . Max Gunslinging Chain 2 | . 1 1 1 . 1 1 1 2 . 1 1 1 . 1 1 1 1 1 1 . . . 1 1 . . 2 1 1 . . . . . Capacitor 178 | . . . . . . . . . . . . . . . . . . . . . . . . . . . . . 8 50 89 . . 31 Autonomous 31 | . . . . . . . . . . . . . . . . . . . 31 . . . . . . . . . . . . . . . Shots Hit Robots 2746 | . 78 29 72 5 68 169 72 87 . 187 126 30 48 52 87 81 29 129 118 90 40 37 165 94 23 48 66 31 332 28 83 91 37 114 Core Hits 1388 | . 60 26 99 6 58 63 29 40 . 25 44 15 14 27 43 33 13 49 33 41 18 3 45 24 8 21 29 10 121 8 43 146 106 88 Critical Kills 100 | . . . . . . 1 . . . . . . . . 2 1 . 2 3 2 1 1 1 2 . 1 9 1 12 . 4 24 28 5 Critical Parts Destroyed 153 | . . . . . . 1 . . . . . . . . 3 7 2 5 3 . . . . 1 . . 10 1 23 . 6 45 32 14 Critical Strikes 382 | . 3 . . . 2 8 3 5 . 20 5 3 . . 10 8 4 9 6 2 1 1 10 5 . 2 20 2 36 1 10 115 68 23 Burn 66 | . 3 . . . 2 6 3 5 . 20 5 3 . . 5 . 2 . . . . . 9 2 . 1 . . . . . . . . Meltdown 7 | . . . . . . . . . . . . . . . . . . . 2 2 1 1 1 . . . . . . . . . . . Destroy 297 | . . . . . . . . . . . . . . . 5 8 2 9 4 . . . . 3 . 1 20 2 35 . 10 111 68 19 Blast 8 | . . . . . . . . . . . . . . . . . . . . . . . . . . . . . . . . 4 . 4 Corrupt 2 | . . . . . . . . . . . . . . . . . . . . . . . . . . . . . 1 1 . . . . Smash 2 | . . . . . . 2 . . . . . . . . . . . . . . . . . . . . . . . . . . . . Melee Attacks 69 | . . . . 1 10 20 7 . . 7 24 . . . . . . . . . . . . . . . . . . . . . . . Impact 59 | . . . . 1 10 17 7 . . . 24 . . . . . . . . . . . . . . . . . . . . . . . Slashing . | . . . . . . . . . . . . . . . . . . . . . . . . . . . . . . . . . . . Piercing . | . . . . . . . . . . . . . . . . . . . . . . . . . . . . . . . . . . . Sneak Attacks 5 | . . . . . . 5 . . . . . . . . . . . . . . . . . . . . . . . . . . . . Combat Hostiles . | . . . . . . . . . . . . . . . . . . . . . . . . . . . . . . . . . . . Follow-up Attacks . | . . . . . . . . . . . . . . . . . . . . . . . . . . . . . . . . . . . Damage Inflicted 73481 | . 964 465 989 59 1293 3236 1305 1735 . 3625 2378 823 916 1050 1836 1689 663 3347 3678 2950 2133 1147 4353 1378 549 1429 2021 981 9658 1404 3993 6046 616 4772 Guns 44650 | . 910 316 976 59 1152 2728 1305 1735 . 3625 2378 463 323 1050 1809 1689 663 2915 1146 . . . 1941 1185 284 705 2021 981 7454 836 1407 346 . 2248 Cannons 24919 | . . . . . . . . . . . . 55 593 . 27 . . . 2217 2950 1419 1147 2412 193 . 724 . . 2059 568 2433 5279 616 2227 Explosions 3039 | . 54 141 13 . 141 . . . . . . 305 . . . . . 432 255 . 714 . . . 265 . . . 145 . 153 421 . . Melee 499 | . . . . . . 499 . . . . . . . . . . . . . . . . . . . . . . . . . . . . Ramming 374 | . . 8 . . . 9 . . . . . . . . . . . . 60 . . . . . . . . . . . . . . 297 Kinetic 10530 | . 66 . . . . . . . . . . . . . . . . . . . . . . 130 . 587 2021 . . . 53 5279 616 1778 Thermal 53540 | . 800 316 989 59 1152 2728 1305 1735 . 3625 2378 518 916 1050 1836 1689 663 2915 3363 2950 1808 1147 4353 1234 265 842 . 981 7195 836 1560 346 . 1986 Explosive 2020 | . . 141 . . 141 . . . . . . 305 . . . . . 432 255 . 325 . . . . . . . . . . 421 . . Electromagnetic 6518 | . 98 . . . . . . . . . . . . . . . . . . . . . . 14 284 . . . 2463 568 2380 . . 711 Impact 499 | . . . . . . 499 . . . . . . . . . . . . . . . . . . . . . . . . . . . . Slashing . | . . . . . . . . . . . . . . . . . . . . . . . . . . . . . . . . . . . Piercing . | . . . . . . . . . . . . . . . . . . . . . . . . . . . . . . . . . . . Highest Corruption 83 | . 3 3 . . 4 3 3 3 . . 2 . 2 3 . . . . 10 7 3 3 17 17 14 14 3 1 83 . 3 4 2 25 Average Corruption 6 | . 2 3 . . 4 3 3 3 . . 1 . 1 2 . . . . 5 5 2 3 9 13 14 7 3 1 10 . 2 3 1 12 Corruption Purged 48 | . . . . . . . . . . . 2 . . . . . . . 5 2 . . . 5 . 26 . . 8 . . . . . Corruption Blocked . | . . . . . . . . . . . . . . . . . . . . . . . . . . . . . . . . . . . Effects 743 | . 5 32 . . 24 37 16 21 . . 7 . 6 8 . . . . 52 44 4 9 76 153 17 22 9 2 72 . 24 24 4 75 Message Errors 169 | . . 7 . . 8 4 4 6 . . 3 . . 4 . . . . 10 9 1 1 16 36 3 8 3 . 17 . 5 7 2 15 Matter Fused 176 | . . 8 . . 4 6 6 3 . . . . 4 . . . . . 14 12 1 3 15 41 4 5 1 1 19 . 7 2 . 20 Heat Flow Errors 85 | . . 4 . . 3 6 1 4 . . 1 . . 1 . . . . 7 3 . . 10 20 3 2 . . 8 . 5 3 . 4 Energy Discharges 101 | . 3 6 . . 2 12 3 3 . . 1 . . . . . . . 6 6 1 1 10 20 3 3 . . 13 . 3 . . 5 Parts Rejected 14 | . . 1 . . . . . 1 . . . . . . . . . . 3 1 . . 5 1 . . . . . . . 1 . 1 Parts Fused 7 | . . 2 . . . 1 . . . . . . . . . . . . 1 . . 1 2 . . . . . . . . . . . Data Loss (minor) 69 | . . 3 . . 4 3 1 . . . 1 . 2 2 . . . . 4 4 . . 5 18 2 1 3 1 2 . . 5 . 8 Data Loss (major) 34 | . . . . . . 1 . . . . . . . 1 . . . . 3 5 . . 4 6 1 . . . 4 . 2 3 . 4 Misfires 33 | . 1 1 . . 2 2 1 1 . . . . . . . . . . 3 2 . 2 3 4 . 2 1 . 3 . 1 2 1 1 Alerts 20 | . 1 . . . 1 . . 1 . . . . . . . . . . . 1 1 1 2 4 . 1 1 . 4 . 1 . . 1 Misdirections 13 | . . . . . . . . . . . . . . . . . . . . . . . 2 2 . . . . . . . . . 9 Weapon Failures 22 | . . . . . . 2 . 2 . . 1 . . . . . . . 1 1 . . 2 1 1 . . . 2 . . 1 1 7 Overload Shots 15 | . . . . . . . . . . . . . 1 . 3 2 1 1 . 1 . . 6 . . . . . . . . . . . Effects 1 | . . . . . . . . . . . . . . . . 1 . . . . . . . . . . . . . . . . . . Energy Bleed 1 | . . . . . . . . . . . . . . . . 1 . . . . . . . . . . . . . . . . . . Overflow Damage 1635 | . . 30 . . . 79 . . . . . . 26 . . . . . 174 97 133 . 136 . . 11 . . . . 28 583 . 338 Projectiles 1292 | . . . . . . . . . . . . . 26 . . . . . 69 97 101 . 136 . . 11 . . . . 28 561 . 263 Explosions 169 | . . 30 . . . . . . . . . . . . . . . . 85 . 32 . . . . . . . . . . 22 . . Melee 174 | . . . . . . 79 . . . . . . . . . . . . 20 . . . . . . . . . . . . . . 75 Knockbacks 103 | . . . . . . 3 . . . . . . . . . . . . . . . . . 1 . . . . . . 3 37 22 37 Impact 6 | . . . . . . 3 . . . . . . . . . . . . . . . . . . . . . . . . . . . 3 Kinetic 93 | . . . . . . . . . . . . . . . . . . . . . . . . 1 . . . . . . 3 34 22 33 Secondary 4 | . . . . . . . . . . . . . . . . . . . . . . . . . . . . . . . . 3 . 1 Self-Inflicted Damage 469 | . 2 35 37 . 40 . . . . . . 27 . . . . . . . . 135 . . . . . . . 99 . 85 9 . . Shots 10 | . 1 1 1 . 1 . . . . . . 1 . . . . . . . . 2 . . . . . . . 1 . 1 1 . . Rammed . | . . . . . . . . . . . . . . . . . . . . . . . . . . . . . . . . . . . Targets Rammed 15 | . . 1 . . . 2 . . . . . . . . . . . . 1 . . . . . . . . . . . . . . 11 Kicked 15 | . . 1 . . . 2 . . . . . . . . . . . . 1 . . . . . . . . . . . . . . 11 Crushed . | . . . . . . . . . . . . . . . . . . . . . . . . . . . . . . . . . . . Highest Temperature 420 | . 102 245 324 132 293 419 348 126 . . 405 156 305 268 341 359 419 200 377 207 4 . 383 279 420 327 150 318 315 234 329 218 108 336 Average Temperature 93 | . 27 49 129 59 89 109 116 43 . . 106 74 75 73 100 120 138 54 132 55 4 . 110 106 139 105 40 138 56 87 113 93 55 87 Received Heat Transfer 6401 | . 207 39 192 15 168 792 351 297 . . 297 36 51 297 189 207 40 206 153 180 . . 415 96 . 45 57 5 334 . 39 473 252 968 Effects 35 | . . . . . . 2 . . . . 2 . . . 1 2 3 . 2 . . . 2 2 6 4 . . 1 . . . . 8 Shutdowns 6 | . . . . . . . . . . . . . . . . . 1 . 2 . . . . . 2 1 . . . . . . . . Energy Bleed 7 | . . . . . . . . . . . . . . . 1 . 2 . . . . . 2 . 1 . . . 1 . . . . . Interference 21 | . . . . . . 1 . . . . 2 . . . . 2 . . . . . . . 2 3 3 . . . . . . . 8 Short Circuit 1 | . . . . . . 1 . . . . . . . . . . . . . . . . . . . . . . . . . . . . Siege Activations . | . . . . . . . . . . . . . . . . . . . . . . . . . . . . . . . . . . . Martial Activations . | . . . . . . . . . . . . . . . . . . . . . . . . . . . . . . . . . . . Shielding Activations 7 | . . . . . . . . . . . . . . . . . . . 2 4 . . . . . . . . 1 . . . . . Total Turns 139 | . . . . . . . . . . . . . . . . . . . 48 65 . . . . . . . . 26 . . . . . Longest Duration 26 | . . . . . . . . . . . . . . . . . . . 26 25 . . . . . . . . 26 . . . . . Robots Disrupted 3 | . . . . . . . . . . . . . . . . . . . . . . . . . 3 . . . . . . . . . Combat Hostiles 3 | . . . . . . . . . . . . . . . . . . . . . . . . . 3 . . . . . . . . . Robots Corrupted 41 | . . . . . . 3 . . . . . . . . . . . . 1 . . . . . 1 . . . 15 4 11 1 . 5 Combat Hostiles 37 | . . . . . . 2 . . . . . . . . . . . . . . . . . . 1 . . . 15 4 9 1 . 5 Parts Fried 81 | . . . . . . 3 . . . . . . . . . . . . 4 . . . . 1 1 . . . 43 7 15 1 . 6 Impact Corruptions 12 | . . . . . . 5 . . . . . . . . . . . . 1 . . . . . . . . . . . . 1 . 5 Robots Melted 30 | . 1 . . . . 3 . 1 . . 1 2 . 1 1 . . 1 6 2 1 1 6 1 . 1 . 1 . . . . . . Combat Hostiles 28 | . 1 . . . . 3 . 1 . . 1 2 . 1 1 . . . 5 2 1 1 6 1 . 1 . 1 . . . . . . Parts Melted 259 | . 4 . 1 . 3 17 7 10 . . 26 4 6 5 14 5 3 30 22 16 10 1 37 12 . 3 . 5 11 2 2 . . 3 Heat Transferred 88529 | . 1858 390 1275 80 2276 6438 2960 3700 . 8547 4810 1295 1718 2148 3753 2561 1240 4458 4598 4450 2300 1800 7679 2718 200 1450 . 1221 8906 518 1112 444 . 1626 Parts Sabotaged . | . . . . . . . . . . . . . . . . . . . . . . . . . . . . . . . . . . . Parts Stolen . | . . . . . . . . . . . . . . . . . . . . . . . . . . . . . . . . . . . Parts Stripped . | . . . . . . . . . . . . . . . . . . . . . . . . . . . . . . . . . . . Power Chain Reactions 6 | . 1 . . . . . . . . . . . . . . . . . . . . . . . 1 . . . 2 . 2 . . . Alert | -11 -10 -10 -9 -9 -9 -8 -8 -8 -7 -7 -7 -7 -7 -7 -6 -6 -5 -5 -5 -5 -4 -4 -4 -4 -4 -4 -4 -3 -3 -2 -2 -2 -1 -1 ------- Run | Yrd Mat Min Mat Sto Gar Mat Gar Mat Fac Was Fac Gar Fac Gar Fac Gar Fac Gar Fac Gar Fac Was Fac Ext Cet Arc Hub Res Qua Res Tes Sec Acc Com Maximum Alert Level 4 | . . . 1 . 3 2 3 1 . . . 2 1 2 1 3 2 4 3 4 3 1 1 . 1 1 2 1 2 1 3 4 4 3 Low Security (%) 49 | . 100 100 74 100 25 15 20 10 100 100 100 27 91 38 66 4 . . 44 . . 67 92 100 68 85 31 59 37 . 1 . . . Level 1 18 | . . . 25 . 29 53 12 89 . . . 59 8 27 33 26 17 16 24 6 . 32 7 . 31 14 . 40 18 100 29 . . . Level 2 17 | . . . . . 44 31 57 . . . . 13 . 34 . 52 82 29 23 27 35 . . . . . 67 . 44 . 13 24 . . Level 3 12 | . . . . . . . 10 . . . . . . . . 16 . 27 7 56 64 . . . . . . . . . 55 32 52 100 Level 4 2 | . . . . . . . . . . . . . . . . . . 26 . 9 . . . . . . . . . . . 42 47 . Level 5 . | . . . . . . . . . . . . . . . . . . . . . . . . . . . . . . . . . . . High Security . | . . . . . . . . . . . . . . . . . . . . . . . . . . . . . . . . . . . Max Security . | . . . . . . . . . . . . . . . . . . . . . . . . . . . . . . . . . . . Peak Influence 1374 | . 166 73 260 92 792 523 722 351 145 36 160 476 249 488 273 898 471 1374 793 1105 847 266 226 156 253 249 631 288 604 366 1067 1342 1263 1074 Initial 794 | . . 62 . 92 . 386 87 351 131 36 . 100 249 . 256 173 471 276 721 367 579 266 53 55 57 56 . 253 21 336 178 567 794 764 Average 321 | . 80 13 148 26 371 347 463 259 125 1 54 275 69 277 118 543 426 781 308 770 720 167 78 55 174 80 385 165 319 316 692 958 1006 925 Influence Increases 21352 | . 582 144 714 29 842 949 655 541 14 . 654 466 295 508 518 765 202 1268 1004 838 618 16 962 623 386 340 1030 135 1496 220 1382 1377 737 1042 Destroy 0b10 Robot/C 11300 | . 320 100 440 . 500 620 320 320 . . 360 240 160 240 320 420 140 560 480 480 180 . 500 360 160 80 340 80 1000 140 760 700 460 520 Destroy 0b10 Robot/NC 545 | . 40 . 15 10 . 40 . 40 . . 15 . 20 . 25 . 10 30 45 . 15 . 5 15 10 40 35 5 25 . 40 25 35 5 Destroy Leader 1996 | . 76 20 122 4 30 160 20 100 . . 122 20 34 30 80 20 22 30 140 40 50 . 92 42 . . 80 20 204 50 84 124 80 100 Allied During Kill 1141 | . . 3 14 . . . . . . . 2 12 7 8 4 29 26 178 42 19 5 . 23 77 169 120 309 . . . 94 . . . Successful Hack 561 | . 33 . 19 . 14 17 14 35 14 . 72 . 23 60 39 . . 26 58 . . . 14 23 . . . . 89 . 11 . . . Select Force Hacks 90 | . 60 . 30 . . . . . . . . . . . . . . . . . . . . . . . . . . . . . . . Disable Machine 1410 | . . . 30 15 . . . . . . 15 15 15 . 45 . . 15 75 15 225 . 45 90 15 60 180 30 105 . 150 210 15 45 Anti-Garrison Action 1350 | . . . . . 200 . 200 . . . . 100 . 100 . 150 . 350 . 250 . . . . . . . . . . . . . . Destroy Structure 1714 | . 8 21 44 . 53 7 11 1 . . 38 49 6 10 5 26 4 79 164 19 128 16 58 16 32 40 86 . 28 30 168 243 132 192 Partial Spotted 60 | . . . . . . 15 . . . . . . . . . . . . . . . . . . . . . . 15 . 15 15 . . Lose Combat Pursuer 1185 | . 45 . . . 45 90 90 45 . . 30 30 30 60 . 120 . . . 15 15 . 225 . . . . . 30 . 60 60 15 180 Influence Decreases 20344 | . 422 303 495 249 50 1606 68 973 199 105 510 134 771 20 758 115 705 289 1853 258 962 701 924 633 349 481 546 581 935 501 692 1061 866 1229 Entered New Map 6503 | . . 98 1 128 . 406 48 371 159 69 . 44 227 . 232 75 427 119 653 158 526 495 23 59 47 85 . 231 17 263 140 441 530 431 Time Decay 10306 | . 422 205 464 121 . 595 . 452 40 16 460 . 394 . 486 . 238 . 695 . 386 206 539 431 222 376 446 350 698 238 502 470 286 568 Lost Part 900 | . . . 10 . 50 80 20 . . . 30 50 . 20 10 . . 10 10 40 40 . 120 30 . . . . 70 . 30 . 50 230 Lost Ally 985 | . . . 20 . . . . . . 20 20 40 . . 30 40 40 160 120 60 10 . 92 113 80 20 100 . . . 20 . . . Purge Threat 1650 | . . . . . . 525 . 150 . . . . 150 . . . . . 375 . . . 150 . . . . . 150 . . 150 . . Squads Dispatched 94 | . 5 . 3 . . 4 . 1 . . 6 . 4 . 6 . 2 . 8 . 1 . 9 1 . . 2 3 7 1 9 8 6 8 Investigation 7 | . 2 . 3 . . . . . . . . . 1 . . . . . . . . . . 1 . . . . . . . . . . Extermination 40 | . . . . . . . . . . . 4 . 2 . 4 . 1 . 4 . 1 . 5 . . . 1 . 5 1 3 3 2 4 Reinforcement 35 | . 3 . . . . 4 . 1 . . 2 . 1 . 2 . 1 . 3 . . . 3 . . . 1 3 2 . 6 1 1 1 Assault 8 | . . . . . . . . . . . . . . . . . . . . . . . . . . . . . . . . 2 3 3 Garrison 4 | . . . . . . . . . . . . . . . . . . . 1 . . . 1 . . . . . . . . 2 . . Intercept . | . . . . . . . . . . . . . . . . . . . . . . . . . . . . . . . . . . . Searches Triggered . | . . . . . . . . . . . . . . . . . . . . . . . . . . . . . . . . . . . Unchained Authorized 1 | . . . . . . . . . . . . . . . . . . . . . . . . . . . . . . 1 . . . . Construction Impeded 3 | . . . . . . . . . . . . . . . . . . . . . . . . . . . . . . . 1 1 1 . Haulers Reinforced 4 | . . . . . . . . . . . . . . . 1 . . . . . . . . . . . . 2 . . 1 . . . Active Scanning Responses . | . . . . . . . . . . . . . . . . . . . . . . . . . . . . . . . . . . . Cargo Convoy Interrupts . | . . . . . . . . . . . . . . . . . . . . . . . . . . . . . . . . . . . Stealth | -11 -10 -10 -9 -9 -9 -8 -8 -8 -7 -7 -7 -7 -7 -7 -6 -6 -5 -5 -5 -5 -4 -4 -4 -4 -4 -4 -4 -3 -3 -2 -2 -2 -1 -1 --------- Run | Yrd Mat Min Mat Sto Gar Mat Gar Mat Fac Was Fac Gar Fac Gar Fac Gar Fac Gar Fac Gar Fac Was Fac Ext Cet Arc Hub Res Qua Res Tes Sec Acc Com Distress Signals 40 | . 8 . 2 1 . 6 . 3 . . . . . . . . . . . . 2 . 4 . 2 . 1 6 2 . . 1 1 1 Communications Jammed 136 | . . . . . . 8 . . . . . . 2 . 1 . 1 . 14 . 3 . 33 66 . . . . . . . . 2 6 Distress Signals 126 | . . . . . . . . . . . . . 2 . 1 . 1 . 13 . 2 . 33 66 . . . . . . . . 2 6 Times Spotted 951 | . 35 5 28 8 25 54 15 25 . 6 28 12 14 15 20 29 12 33 38 22 15 6 51 24 10 14 18 11 64 7 41 53 43 170 Peak Tracking Total 14 | . 6 2 9 4 6 5 6 5 . 3 4 5 3 4 5 4 5 5 4 5 3 3 6 4 5 2 6 4 6 3 4 8 8 14 Tactical Retreats 54 | . 2 . . . 1 4 2 2 . . 1 1 2 3 . 7 . . . 1 1 . 12 . . . . . 2 . 4 2 1 6 Traps | -11 -10 -10 -9 -9 -9 -8 -8 -8 -7 -7 -7 -7 -7 -7 -6 -6 -5 -5 -5 -5 -4 -4 -4 -4 -4 -4 -4 -3 -3 -2 -2 -2 -1 -1 ------- Run | Yrd Mat Min Mat Sto Gar Mat Gar Mat Fac Was Fac Gar Fac Gar Fac Gar Fac Gar Fac Gar Fac Was Fac Ext Cet Arc Hub Res Qua Res Tes Sec Acc Com Traps Triggered 50 | . 2 . 3 . 6 . 2 2 1 . 3 . 2 3 2 . . 2 6 1 1 . 2 1 . . 4 1 1 . 1 1 1 2 Indirectly . | . . . . . . . . . . . . . . . . . . . . . . . . . . . . . . . . . . . Trap Hack Attempts . | . . . . . . . . . . . . . . . . . . . . . . . . . . . . . . . . . . . Triggered . | . . . . . . . . . . . . . . . . . . . . . . . . . . . . . . . . . . . Disarmed . | . . . . . . . . . . . . . . . . . . . . . . . . . . . . . . . . . . . Reprogrammed . | . . . . . . . . . . . . . . . . . . . . . . . . . . . . . . . . . . . Reused . | . . . . . . . . . . . . . . . . . . . . . . . . . . . . . . . . . . . Traps Extracted . | . . . . . . . . . . . . . . . . . . . . . . . . . . . . . . . . . . . Installed . | . . . . . . . . . . . . . . . . . . . . . . . . . . . . . . . . . . . Triggered . | . . . . . . . . . . . . . . . . . . . . . . . . . . . . . . . . . . . Machines | -11 -10 -10 -9 -9 -9 -8 -8 -8 -7 -7 -7 -7 -7 -7 -6 -6 -5 -5 -5 -5 -4 -4 -4 -4 -4 -4 -4 -3 -3 -2 -2 -2 -1 -1 ---------- Run | Yrd Mat Min Mat Sto Gar Mat Gar Mat Fac Was Fac Gar Fac Gar Fac Gar Fac Gar Fac Gar Fac Was Fac Ext Cet Arc Hub Res Qua Res Tes Sec Acc Com Machines Disabled 117 | . . . 2 1 1 . 4 . . . 1 4 1 2 3 4 . 6 5 4 15 . 3 6 1 4 12 2 7 . 10 14 1 4 Max in Single Turn 9 | . . . 1 1 1 . 1 . . . 1 1 . 1 1 1 . 1 4 1 9 . 1 1 1 1 2 1 1 . 2 2 1 1 Garrison Access 14 | . . . . . . . . . . . 3 . 1 . . . 1 . 3 . 2 . 1 . . . . . 1 . . 1 1 . Garrison Relay 20 | . . . . . 1 . 4 . . . . 2 . 2 . 3 . 5 . 3 . . . . . . . . . . . . . . Network Hub 1 | . . . . . . . . . . . . . . . . . . . . . . . . . . . 1 . . . . . . . Machines Repaired . | . . . . . . . . . . . . . . . . . . . . . . . . . . . . . . . . . . . Machines Dismantled 9 | . . . . . . . . . . . . . . . . . . . . . . . . 5 1 . 1 2 . . . . . . Machines Sabotaged . | . . . . . . . . . . . . . . . . . . . . . . . . . . . . . . . . . . . Overloaded Fab Kills . | . . . . . . . . . . . . . . . . . . . . . . . . . . . . . . . . . . . Hacking | -11 -10 -10 -9 -9 -9 -8 -8 -8 -7 -7 -7 -7 -7 -7 -6 -6 -5 -5 -5 -5 -4 -4 -4 -4 -4 -4 -4 -3 -3 -2 -2 -2 -1 -1 --------- Run | Yrd Mat Min Mat Sto Gar Mat Gar Mat Fac Was Fac Gar Fac Gar Fac Gar Fac Gar Fac Gar Fac Was Fac Ext Cet Arc Hub Res Qua Res Tes Sec Acc Com Machines Accessed 155 | . 7 . 11 1 3 10 2 11 1 . 13 . 9 2 10 2 2 2 18 1 3 . 3 14 1 . 1 3 8 2 4 4 4 3 Terminals 106 | . 5 . 8 . 3 7 2 7 1 . 6 . 3 2 5 2 . 2 14 1 1 . 2 13 1 . 1 2 5 1 4 3 2 3 Fabricators . | . . . . . . . . . . . . . . . . . . . . . . . . . . . . . . . . . . . Repair Stations 2 | . . . 1 . . . . . . . . . . . . . . . . . . . . . . . . . 1 . . . . . Recycling Units 16 | . 2 . 1 . . 1 . 2 . . 2 . 1 . 3 . . . . . . . . 1 . . . 1 . 1 . . 1 . Scanalyzers 10 | . . . 1 . . 1 . 2 . . 1 . 3 . 1 . . . . . . . . . . . . . 1 . . . . . Garrison Access 21 | . . . . 1 . 1 . . . . 4 . 2 . 1 . 2 . 4 . 2 . 1 . . . . . 1 . . 1 1 . Total Hacks 358 | . 18 . 29 1 6 23 3 31 2 . 26 . 26 6 20 4 2 3 35 3 4 . 5 27 1 . 1 3 33 5 12 17 5 7 Successful 149 | . 9 . 10 1 1 12 1 12 2 . 16 . 12 4 11 . 2 2 16 . 2 . 2 5 . . . . 20 1 2 4 2 . Failed 206 | . 9 . 19 . 5 11 2 18 . . 10 . 13 2 9 4 . 1 19 3 2 . 3 22 1 . 1 3 12 4 10 13 3 7 Catastrophic 53 | . 2 . 3 . 2 3 1 2 . . 4 . 3 2 2 1 . . 2 1 1 . 1 7 1 . 1 3 2 . 5 1 2 1 Database Lockouts 3 | . . . . . . . . 1 . . . . 1 . . . . . . . . . . . . . . . 1 . . . . . Manual 232 | . 18 . 25 . 3 19 2 22 2 . 16 . 13 3 11 3 . 2 30 3 1 . 4 13 1 . 1 1 16 2 4 9 1 7 Terminals 273 | . 15 . 22 . 6 19 3 23 2 . 16 . 14 6 12 4 . 3 31 3 2 . 4 25 1 . 1 2 21 2 12 15 2 7 Fabricators . | . . . . . . . . . . . . . . . . . . . . . . . . . . . . . . . . . . . Repair Stations 4 | . . . 2 . . . . . . . . . . . . . . . . . . . . . . . . . 2 . . . . . Recycling Units 28 | . 3 . 3 . . 1 . 5 . . 2 . 3 . 4 . . . . . . . . 2 . . . 1 . 3 . . 1 . Scanalyzers 27 | . . . 2 . . 2 . 3 . . 2 . 7 . 3 . . . . . . . . . . . . . 8 . . . . . Garrison Access 26 | . . . . 1 . 1 . . . . 6 . 2 . 1 . 2 . 4 . 2 . 1 . . . . . 2 . . 2 2 . Terminal Hacks 33 | . 3 . . . 1 2 . 4 . . 2 . 4 3 2 . . 1 3 . . . . 2 . . . . 4 . 1 1 . . Part Schematic 4 | . . . . . . . . 2 . . . . . . 1 . . . 1 . . . . . . . . . . . . . . . Robot Analysis 1 | . 1 . . . . . . . . . . . . . . . . . . . . . . . . . . . . . . . . . Open Door 3 | . . . . . . . . . . . . . . . . . . . . . . . . 2 . . . . . . 1 . . . Emergency Access Points 2 | . . . . . 1 . . . . . . . . 1 . . . . . . . . . . . . . . . . . . . . Terminal Index 8 | . 1 . . . . 1 . 1 . . 1 . 1 . 1 . . . 1 . . . . . . . . . 1 . . . . . Repair Station Index 2 | . . . . . . . . . . . . . 1 . . . . . 1 . . . . . . . . . . . . . . . Recycling Unit Index 1 | . 1 . . . . . . . . . . . . . . . . . . . . . . . . . . . . . . . . . Scanalyzer Index 1 | . . . . . . . . . . . . . . . . . . . . . . . . . . . . . 1 . . . . . Garrison Index 1 | . . . . . . . . . . . 1 . . . . . . . . . . . . . . . . . . . . . . . Unreport Threat 4 | . . . . . . 1 . 1 . . . . . . . . . . . . . . . . . . . . 1 . . 1 . . Maintenance Status 1 | . . . . . . . . . . . . . 1 . . . . . . . . . . . . . . . . . . . . . Zone Layout 2 | . . . . . . . . . . . . . 1 . . . . . . . . . . . . . . . 1 . . . . . Garrison Registry 2 | . . . . . . . . . . . . . . 1 . . . 1 . . . . . . . . . . . . . . . . Security Stations 1 | . . . . . . . . . . . . . . 1 . . . . . . . . . . . . . . . . . . . . Fabricator Hacks . | . . . . . . . . . . . . . . . . . . . . . . . . . . . . . . . . . . . Repair Station Hacks 4 | . . . 2 . . . . . . . . . . . . . . . . . . . . . . . . . 2 . . . . . Scan Component 2 | . . . 1 . . . . . . . . . . . . . . . . . . . . . . . . . 1 . . . . . Repair 2 | . . . 1 . . . . . . . . . . . . . . . . . . . . . . . . . 1 . . . . . Recycling Unit Hacks 5 | . . . . . . 1 . 1 . . . . . . 2 . . . . . . . . . . . . . . 1 . . . . Retrieve Components 5 | . . . . . . 1 . 1 . . . . . . 2 . . . . . . . . . . . . . . 1 . . . . Scanalyzer 17 | . . . 1 . . 2 . 1 . . 2 . 2 . 3 . . . . . . . . . . . . . 6 . . . . . Insert Component 4 | . . . . . . . . . . . . . . . . . . . . . . . . . . . . . 4 . . . . . Retrieve Study 13 | . . . 1 . . 2 . 1 . . 2 . 2 . 3 . . . . . . . . . . . . . 2 . . . . . Garrison Access Hacks 25 | . . . . 1 . 1 . . . . 5 . 2 . 1 . 2 . 4 . 2 . 1 . . . . . 2 . . 2 2 . Unlock Access 7 | . . . . 1 . 1 . . . . 1 . 1 . 1 . 1 . 1 . . . . . . . . . . . . . . . Seal Access 14 | . . . . . . . . . . . 3 . 1 . . . 1 . 3 . 2 . 1 . . . . . 1 . . 1 1 . Coupler Status 4 | . . . . . . . . . . . 1 . . . . . . . . . . . . . . . . . 1 . . 1 1 . Unauthorized Hacks 65 | . 6 . 7 . . 6 1 6 2 . 7 . 4 1 3 . . 1 9 . . . 1 3 . . . . 6 . 1 1 . . Terminals 61 | . 4 . 6 . . 6 1 6 2 . 6 . 4 1 3 . . 1 9 . . . 1 3 . . . . 6 . 1 1 . . Assimilate 1 | . . . . . . . . . . . . . . . . . . . 1 . . . . . . . . . . . . . . . Botnet 17 | . 1 . 1 . . 1 1 1 1 . 1 . 1 1 1 . . 1 1 . . . 1 1 . . . . 1 . 1 1 . . Operators 1 | . . . . . . . . . . . . . 1 . . . . . . . . . . . . . . . . . . . . . Skim 42 | . 3 . 5 . . 5 . 5 1 . 5 . 2 . 2 . . . 7 . . . . 2 . . . . 5 . . . . . Fabricators . | . . . . . . . . . . . . . . . . . . . . . . . . . . . . . . . . . . . Repair Stations . | . . . . . . . . . . . . . . . . . . . . . . . . . . . . . . . . . . . Recycling Units 3 | . 2 . 1 . . . . . . . . . . . . . . . . . . . . . . . . . . . . . . . Tunnel 3 | . 2 . 1 . . . . . . . . . . . . . . . . . . . . . . . . . . . . . . . Scanalyzers . | . . . . . . . . . . . . . . . . . . . . . . . . . . . . . . . . . . . Garrison Access 1 | . . . . . . . . . . . 1 . . . . . . . . . . . . . . . . . . . . . . . Broadcast 1 | . . . . . . . . . . . 1 . . . . . . . . . . . . . . . . . . . . . . . Data Cores Recovered 3 | . . . . . . . . . . . . . . . . . . . . . . . . 1 . . 1 . 1 . . . . . Used . | . . . . . . . . . . . . . . . . . . . . . . . . . . . . . . . . . . . Hacking Detections 125 | . 6 . 11 1 3 8 2 9 1 . 9 . 6 2 7 2 . 1 15 1 1 . 2 12 2 . 1 3 4 2 4 3 4 3 Full Trace Events 3 | . . . . . 1 . . . . . . . 1 . . . . . . . . . . 1 . . . . . . . . . . Feedback Events . | . . . . . . . . . . . . . . . . . . . . . . . . . . . . . . . . . . . Feedback Blocked . | . . . . . . . . . . . . . . . . . . . . . . . . . . . . . . . . . . . Robot Schematics Acquired 3 | . . . . . . . . . . . . . . . . . . . . . . . . . . . . . . . 3 . . . Robots Built . | . . . . . . . . . . . . . . . . . . . . . . . . . . . . . . . . . . . Authchips . | . . . . . . . . . . . . . . . . . . . . . . . . . . . . . . . . . . . Time . | . . . . . . . . . . . . . . . . . . . . . . . . . . . . . . . . . . . Total Robot Build Rating . | . . . . . . . . . . . . . . . . . . . . . . . . . . . . . . . . . . . Part Schematics Acquired 9 | . . . . . . . . 2 . . . . . . 1 . . . 1 . . . . . . . . . . . 5 . . . Parts Built . | . . . . . . . . . . . . . . . . . . . . . . . . . . . . . . . . . . . Authchips . | . . . . . . . . . . . . . . . . . . . . . . . . . . . . . . . . . . . Time . | . . . . . . . . . . . . . . . . . . . . . . . . . . . . . . . . . . . Total Part Build Rating . | . . . . . . . . . . . . . . . . . . . . . . . . . . . . . . . . . . . Part Studies Acquired 13 | . . . 1 . . 2 . 1 . . 2 . 2 . 3 . . . . . . . . . . . . . 2 . . . . . Parts Repaired 2 | . . . 1 . . . . . . . . . . . . . . . . . . . . . . . . . 1 . . . . . Time 63 | . . . 26 . . . . . . . . . . . . . . . . . . . . . . . . . 37 . . . . . Parts Recycled . | . . . . . . . . . . . . . . . . . . . . . . . . . . . . . . . . . . . Recycled Matter . | . . . . . . . . . . . . . . . . . . . . . . . . . . . . . . . . . . . Retrieved Matter . | . . . . . . . . . . . . . . . . . . . . . . . . . . . . . . . . . . . Retrieved Components 19 | . . . . . . . . 10 . . . . . . 7 . . . . . . . . . . . . . . 2 . . . . Parts Scanalyzed . | . . . . . . . . . . . . . . . . . . . . . . . . . . . . . . . . . . . Part Schematics Acquired . | . . . . . . . . . . . . . . . . . . . . . . . . . . . . . . . . . . . Parts Damaged . | . . . . . . . . . . . . . . . . . . . . . . . . . . . . . . . . . . . Bothacking | -11 -10 -10 -9 -9 -9 -8 -8 -8 -7 -7 -7 -7 -7 -7 -6 -6 -5 -5 -5 -5 -4 -4 -4 -4 -4 -4 -4 -3 -3 -2 -2 -2 -1 -1 ------------ Run | Yrd Mat Min Mat Sto Gar Mat Gar Mat Fac Was Fac Gar Fac Gar Fac Gar Fac Gar Fac Gar Fac Was Fac Ext Cet Arc Hub Res Qua Res Tes Sec Acc Com Used RIF Installer 8 | . . . . . 1 . 1 . . . . 1 . 1 . 2 . 1 . 1 . . . . . . . . . . . . . . Command Fork 1 | . . . . . . . . . . . . . . . . 1 . . . . . . . . . . . . . . . . . . Signal Jammer 1 | . . . . . . . 1 . . . . . . . . . . . . . . . . . . . . . . . . . . . Zone Cloak 1 | . . . . . . . . . . . . . . 1 . . . . . . . . . . . . . . . . . . . . Robot Detection 1 | . . . . . . . . . . . . . . . . . . 1 . . . . . . . . . . . . . . . . Patrol Navigation 1 | . . . . . . . . . . . . 1 . . . . . . . . . . . . . . . . . . . . . . Structural Interface 1 | . . . . . . . . . . . . . . . . . . . . 1 . . . . . . . . . . . . . . Program Shield 1 | . . . . . . . . . . . . . . . . 1 . . . . . . . . . . . . . . . . . . Robots Hacked 88 | . . . . . . 1 . . . 6 5 1 5 2 5 6 1 12 8 3 1 6 9 14 . . . . 1 . 1 . 1 . Non-combat 31 | . . . . . . 1 . . . . 2 . 4 . 3 1 . . 4 1 1 . 3 10 . . . . . . . . 1 . Combat 57 | . . . . . . . . . . 6 3 1 1 2 2 5 1 12 4 2 . 6 6 4 . . . . 1 . 1 . . . Robot Hacks Applied 99 | . . . . . . 3 . . . 6 5 1 7 2 6 6 1 12 13 3 1 6 9 14 . . . . 1 . 2 . 1 . parse_system 5 | . . . . . . . . . . . . . 1 . . . . . . . . . . 2 . . . . . . 2 . . . find_chute 1 | . . . . . . . . . . . . . . . . . . . . . 1 . . . . . . . . . . . . . drop_inventory 18 | . . . . . . . . . . . . . 2 . 2 . . . 2 . . . 2 9 . . . . . . . . 1 . locate_stockpiles 1 | . . . . . . . . . . . . . 1 . . . . . . . . . . . . . . . . . . . . . purge_threat 8 | . . . . . . 3 . . . . . . 1 . . . . . 3 . . . 1 . . . . . . . . . . . ignore_targets 12 | . . . . . . . . . . 6 . . . . . . . . . . . 6 . . . . . . . . . . . . find_garrison 4 | . . . . . . . . . . . . . . . 1 . . . 2 . . . . . . . . . 1 . . . . . scatter_targeting 1 | . . . . . . . . . . . . . . . . . . 1 . . . . . . . . . . . . . . . . spike_heat 1 | . . . . . . . . . . . 1 . . . . . . . . . . . . . . . . . . . . . . . amplify_resonance 3 | . . . . . . . . . . . . . . . 1 1 1 . . . . . . . . . . . . . . . . . overwrite_iff 10 | . . . . . . . . . . . . . . 1 . 1 . 6 . 1 . . 1 . . . . . . . . . . . streamctrl_high 2 | . . . . . . . . . . . . . 1 . . . . 1 . . . . . . . . . . . . . . . . formatsys_low 9 | . . . . . . . . . . . 2 . 1 . 1 1 . . 2 1 . . . 1 . . . . . . . . . . formatsys_high 24 | . . . . . . . . . . . 2 1 . 1 1 3 . 4 4 1 . . 5 2 . . . . . . . . . . Relay Couplers Released 95 | . . . . . 4 . 15 . . . 3 6 4 8 . 12 2 19 1 11 . . 7 . . . . . 1 . . 1 1 . Machine Destruction 88 | . . . . . 4 . 15 . . . 3 6 4 8 . 12 2 19 1 11 . . . . . . . . 1 . . 1 1 . Programmers 7 | . . . . . . . . . . . . . . . . . . . . . . . 7 . . . . . . . . . . . Attached 40 | . . . . . . 1 . . . 1 3 1 2 2 2 5 1 5 4 4 . . 5 1 . . . . 2 . . . 1 . Fabnet Peak Effective % . | . . . . . . . . . . . . . . . . . . . . . . . . . . . . . . . . . . . Robots Rewired 15 | . . . . . . . . . . . . . . . . . 1 . . . 1 . 2 10 . . . . . . 1 . . . Allies Hacked 2 | . . . . . . . . . . . . . . . . . . . . 1 1 . . . . . . . . . . . . . Hacks Repelled . | . . . . . . . . . . . . . . . . . . . . . . . . . . . . . . . . . . . Allies | -11 -10 -10 -9 -9 -9 -8 -8 -8 -7 -7 -7 -7 -7 -7 -6 -6 -5 -5 -5 -5 -4 -4 -4 -4 -4 -4 -4 -3 -3 -2 -2 -2 -1 -1 -------- Run | Yrd Mat Min Mat Sto Gar Mat Gar Mat Fac Was Fac Gar Fac Gar Fac Gar Fac Gar Fac Gar Fac Was Fac Ext Cet Arc Hub Res Qua Res Tes Sec Acc Com Total Allies 83 | . . 1 . . . . . . . 1 4 1 2 2 2 5 1 13 6 6 1 1 8 23 5 . . . . . 1 . . . Largest Group 16 | . . 1 1 . . . . . . 1 2 2 2 2 1 4 4 7 6 2 3 1 4 16 11 10 7 . . . 1 . . . Highest-Rated Group 789 | . . 31 31 . . . . . . 31 32 32 46 32 32 142 153 325 240 103 93 46 156 789 775 775 549 . . . 153 . . . Highest-Rated Ally 159 | . . 31 31 . . . . . . 31 23 21 32 16 32 46 64 85 64 89 47 46 58 159 159 159 96 . . . 153 . . . Total Orders 76 | . . . . . . . . . . . 3 . 4 1 1 5 5 15 12 9 . . . 8 7 6 . . . . . . . . STAY 29 | . . . . . . . . . . . . . 1 1 . . 2 6 4 4 . . . 4 4 3 . . . . . . . . FOLLOW 20 | . . . . . . . . . . . . . 1 . . . 1 5 4 2 . . . 3 3 1 . . . . . . . . AID 27 | . . . . . . . . . . . 3 . 2 . 1 5 2 4 4 3 . . . 1 . 2 . . . . . . . . Ally Attacks 536 | . . . 14 . . . . . . 8 1 11 15 15 5 28 13 62 33 23 1 3 43 80 63 35 57 . . . 26 . . . Total Damage 16724 | . . . 168 . . . . . . 146 17 103 343 180 230 911 386 1757 629 1146 26 93 1068 2355 1768 1282 2260 . . . 1856 . . . Kills 89 | . . . 3 . . . . . . . 1 1 3 . 1 6 2 16 8 3 1 . 5 9 10 3 8 . . . 9 . . . Allies Corrupted 7 | . . . . . . . . . . . 1 1 . . . . . . . 1 . . . . . . 4 . . . . . . . Allies Melted 1 | . . . . . . . . . . . . . . . 1 . . . . . . . . . . . . . . . . . . . Intel | -11 -10 -10 -9 -9 -9 -8 -8 -8 -7 -7 -7 -7 -7 -7 -6 -6 -5 -5 -5 -5 -4 -4 -4 -4 -4 -4 -4 -3 -3 -2 -2 -2 -1 -1 ------- Run | Yrd Mat Min Mat Sto Gar Mat Gar Mat Fac Was Fac Gar Fac Gar Fac Gar Fac Gar Fac Gar Fac Was Fac Ext Cet Arc Hub Res Qua Res Tes Sec Acc Com Active Infowar (turns) 13966 | . . . . . . 273 . . 67 17 1767 2 673 . 1647 682 320 4 2061 221 20 . 708 1931 48 . 1 287 1713 320 880 82 242 . Optics 196 | . . . . . . 196 . . . . . . . . . . . . . . . . . . . . . . . . . . . . Sensors 10683 | . . . . . . . . . 67 17 1739 2 673 . 1647 4 319 4 1970 12 20 . 708 . . . . 286 1691 320 880 82 242 . Terrain 1 | . . . . . . . . . . . . . . . . . . . . . . . . . . . 1 . . . . . . . Traps 4945 | . . . . . . . . . . . 1015 . . . 388 679 286 . 219 209 . . . 1931 48 . . . 170 . . . . . Jamming 77 | . . . . . . 77 . . . . . . . . . . . . . . . . . . . . . . . . . . . . ECM 1 | . . . . . . . . . . . . . . . . . . . . . . . . . . . . 1 . . . . . . Robot Analysis Total 1 | . 1 . . . . . . . . . . . . . . . . . . . . . . . . . . . . . . . . . Derelict Logs Recovered 1 | . . 1 . . . . . . . . . . . . . . . . . . . . . . . . . . . . . . . . Drone Launches . | . . . . . . . . . . . . . . . . . . . . . . . . . . . . . . . . . . . Drone Recoveries . | . . . . . . . . . . . . . . . . . . . . . . . . . . . . . . . . . . . Exploration | -11 -10 -10 -9 -9 -9 -8 -8 -8 -7 -7 -7 -7 -7 -7 -6 -6 -5 -5 -5 -5 -4 -4 -4 -4 -4 -4 -4 -3 -3 -2 -2 -2 -1 -1 ------------- Run | Yrd Mat Min Mat Sto Gar Mat Gar Mat Fac Was Fac Gar Fac Gar Fac Gar Fac Gar Fac Gar Fac Was Fac Ext Cet Arc Hub Res Qua Res Tes Sec Acc Com Turns Passed 44449 | . 1134 1575 1208 436 1211 1890 741 1130 86 863 2193 517 1357 501 1804 1171 505 1361 2898 1328 909 437 2035 3639 469 1459 1184 784 4250 501 1346 1181 634 1712 Spaces Moved 24627 | 1 550 712 534 202 532 1001 454 740 72 429 1524 371 952 297 1270 810 346 846 1661 591 612 249 1114 1381 270 310 457 530 2658 339 754 624 343 1091 Core . | . . . . . . . . . . . . . . . . . . . . . . . . . . . . . . . . . . . Treads . | . . . . . . . . . . . . . . . . . . . . . . . . . . . . . . . . . . . Legs 24574 | 1 550 712 534 202 532 1001 454 740 72 429 1524 371 952 297 1270 810 346 846 1661 591 612 249 1114 1381 270 310 457 530 2658 339 754 624 343 1038 Wheels . | . . . . . . . . . . . . . . . . . . . . . . . . . . . . . . . . . . . Hover . | . . . . . . . . . . . . . . . . . . . . . . . . . . . . . . . . . . . Flight . | . . . . . . . . . . . . . . . . . . . . . . . . . . . . . . . . . . . Fastest Speed 100 | 120 120 190 190 190 190 115 118 116 114 114 105 105 105 105 110 108 108 108 126 130 124 124 124 120 128 128 124 111 100 110 113 120 120 120 Average Speed 128 | 120 161 190 190 190 190 125 118 117 114 114 106 105 106 108 111 108 108 112 131 180 125 145 143 162 128 130 127 116 109 114 117 120 120 120 Slowest Speed 205 | 120 190 190 190 190 190 190 118 120 114 114 114 105 110 178 114 110 108 130 196 202 202 202 205 190 128 198 128 123 172 117 120 120 120 120 Overloaded Moves . | . . . . . . . . . . . . . . . . . . . . . . . . . . . . . . . . . . . Propulsion Burnouts . | . . . . . . . . . . . . . . . . . . . . . . . . . . . . . . . . . . . Robots Hopped . | . . . . . . . . . . . . . . . . . . . . . . . . . . . . . . . . . . . Potential Cave-ins 3 | . . . . . . . . . . . . . . . . . . . . . . . . . . . . . . . . 3 . . Cave-ins Triggered 1 | . . . . . . . . . . . . . . . . . . . . . . . . . . . . . . . . 1 . . Teleports 76 | . . . . . . . . . . . . . . . . . . . . . . . . . . . . . . . . 11 16 49 Spacefolds 21 | . . . . . . . . . . . . . . . . . . . . . . . . . . . . . . . . . . 21 Exploration Rate (%) 51 | 2 96 99 64 34 69 80 64 65 2 86 40 44 23 39 26 73 9 76 47 73 17 84 30 87 70 87 46 15 96 10 62 31 9 37 Regions Visited 34 Branch Regions 10 Pre-discovered Areas 13 | . 2 . 3 1 . 2 . 1 . . 1 . . . . . . . 1 . . . . . . . . . 2 . . . . . Known Exits Taken 16 | . . . . 1 . 1 . 1 . . 1 . 1 . 1 . 1 . 1 . . . 1 . 1 . . 1 1 1 1 1 1 . Unknown Exits Taken 7 | 1 1 1 1 . . . . . . . . . . . . . . . . . . . . 1 . 1 1 . . . . . . . Scrap Searched 1 | . . 1 . . . . . . . . . . . . . . . . . . . . . . . . . . . . . . . . Spaces Dug 105 | . . . . . 1 2 1 . . . 17 . 4 . 4 1 . 1 15 1 9 . 4 . . . . . 2 6 12 16 2 7 Terrain Destroyed 753 | . 8 23 50 . 3 2 1 . . . 33 34 6 . 5 1 . 33 91 1 81 8 28 . 19 17 43 . 10 10 39 89 52 66 Melee 21 | . . . . . 1 2 1 . . . 17 . . . . . . . . . . . . . . . . . . . . . . . Projectile 308 | . . . . . . . . . . . . . 6 . 5 1 . 1 57 1 32 8 28 . . 17 43 . 2 10 18 25 2 52 AOE 328 | . 8 23 50 . 2 . . . . . 16 34 . . . . . 32 34 . 49 . . . 19 . . . 8 . 11 42 . . Terrain Rammed . | . . . . . . . . . . . . . . . . . . . . . . . . . . . . . . . . . . . Walls Destroyed . | . . . . . . . . . . . . . . . . . . . . . . . . . . . . . . . . . . . Machines Disabled . | . . . . . . . . . . . . . . . . . . . . . . . . . . . . . . . . . . . Actions | -11 -10 -10 -9 -9 -9 -8 -8 -8 -7 -7 -7 -7 -7 -7 -6 -6 -5 -5 -5 -5 -4 -4 -4 -4 -4 -4 -4 -3 -3 -2 -2 -2 -1 -1 --------- Run | Yrd Mat Min Mat Sto Gar Mat Gar Mat Fac Was Fac Gar Fac Gar Fac Gar Fac Gar Fac Gar Fac Was Fac Ext Cet Arc Hub Res Qua Res Tes Sec Acc Com Total 33974 | . 698 893 656 246 636 1440 568 900 76 644 1895 443 1227 403 1549 992 432 1121 2202 726 686 291 1370 2661 354 1313 963 641 3653 448 1166 877 472 1332 Wait 5469 | . 52 152 74 19 22 212 28 65 . 112 190 20 151 23 130 77 40 124 343 39 23 11 91 1064 38 956 420 23 611 21 184 64 49 41 Move 24564 | . 549 711 533 202 531 1000 453 739 72 428 1523 370 951 296 1269 809 346 845 1660 590 612 248 1113 1380 269 309 456 529 2657 338 753 623 342 1058 Hop . | . . . . . . . . . . . . . . . . . . . . . . . . . . . . . . . . . . . Pick Up 320 | . 15 2 6 6 5 27 13 8 1 6 6 5 11 6 11 7 5 13 17 9 2 3 9 11 5 3 9 10 45 4 12 9 6 13 Fast Attach 225 | . 2 1 3 2 2 15 3 10 . 3 3 1 11 3 8 1 . 9 11 4 2 1 15 13 1 7 10 8 28 1 13 14 3 17 Attach 148 | . . 1 5 1 5 12 2 1 2 1 3 5 4 4 4 5 2 3 7 5 4 . 8 7 3 2 1 6 9 2 10 4 6 14 Detach 31 | . . . . 1 . 3 . . . 2 . . 4 1 . . . . . . 1 . 1 3 1 1 1 . 1 . 6 2 1 2 Swap 567 | . 10 4 2 4 8 25 15 8 1 6 68 7 21 12 35 18 14 19 39 13 6 3 24 18 8 7 6 15 84 22 21 14 5 5 Drop 443 | . 16 . 1 5 1 39 11 22 . 8 10 . 21 8 25 8 4 29 21 2 1 5 8 14 7 6 15 17 62 10 27 20 5 15 Fire 1957 | . 54 21 32 3 37 85 36 47 . 71 68 35 53 35 66 67 21 79 94 59 34 20 101 72 14 22 42 15 156 50 140 127 46 155 Melee 69 | . . . . 1 10 20 7 . . 7 24 . . . . . . . . . . . . . . . . . . . . . . . Ram 1 | . . . . . . . . . . . . . . . . . . . . . . . . . . . . . . . . . . 1 Kick 15 | . . 1 . . . 2 . . . . . . . . . . . . 1 . . . . . . . . . . . . . . 11 Crush . | . . . . . . . . . . . . . . . . . . . . . . . . . . . . . . . . . . . Escape Stasis 35 | . . . . . 15 . . . . . . . . 15 . . . . . 5 . . . . . . . . . . . . . . Rewire 43 | . . . . 2 . . . . . . . . . . 1 . . . 1 . 1 . . 38 . . . . . . . . . . Trap . | . . . . . . . . . . . . . . . . . . . . . . . . . . . . . . . . . . . Miscellaneous 87 | . . . . . . . . . . . . . . . . . . . 8 . . . . 41 8 . 3 18 . . . . 9 . Route ------- -11/Scrapyard -10/Materials (discovered 4 exits: *Mat x3 / [*Min]) -10/Mines (discovered 3 exits: *Mat x2 / [*Sub]) -9/Materials (discovered 6 exits: *Mat x3 / *Min x2 / *Sto) -9/Storage -9/Garrison (discovered 3 exits: *Mat x3) -8/Materials (discovered 4 exits: *Fac x3 / Gar) -8/Garrison (discovered 2 exits: *Mat x2) -8/Materials (discovered 3 exits: *Fac x3) -7/Factory (discovered 6 exits: Fac x4 / Low x2) -7/Waste -7/Factory (discovered 3 exits: *Low x2 / Gar) -7/Garrison -7/Factory (discovered 3 exits: *Fac x2 / Gar) -7/Garrison (discovered 3 exits: *Fac x3) -6/Factory (discovered 3 exits: *Fac x2 / Gar) -6/Garrison (discovered 3 exits: *Fac x3) -5/Factory (discovered 2 exits: *Fac / Gar) -5/Garrison (discovered 3 exits: *Fac x3) -5/Factory (discovered 6 exits: *Fac x3 / *Upp x2 / Gar) -5/Garrison (discovered 3 exits: *Fac x3) -4/Factory (discovered 4 exits: *Upp x2 / *Ext x2) -4/Waste -4/Factory (discovered 2 exits: *Ext x2) -4/Extension (discovered 2 exits: *Res / *Cet) -4/Cetus (discovered 2 exits: *Res / *Arc) -4/Archives (discovered 3 exits: *Res / *Hub x2) -4/Hub_04(d) (discovered 3 exits: *Res x3) -3/Research -3/Quarantine -2/Research (discovered 2 exits: Acc / *Tes) -2/Testing (discovered 2 exits: *Sec / *Frg) -2/Section 7 -1/Access -1/Command To Epsilon Eridani History --------- Turn | Location | Event 1 | -11/Scrapyard | Discovered new exit (range 0) 1 | -11/Scrapyard | Entered Materials 272 | -10/Materials | Discovered new exit (range 3) 303 | -10/Materials | Build established: Mutant 351 | -10/Materials | Discovered new exit (range 12) 616 | -10/Materials | Discovered new exit (range 14) 734 | -10/Materials | Discovered new exit (range 4) 1087 | -10/Materials | Core integrity fell below 50% 1135 | -10/Materials | Entered Mines 1136 | -10/Mines | Assembled infested the area 1141 | -10/Mines | Assisted by a Guerilla fighting off Assembled 1675 | -10/Mines | A weapon hastily lodged in a ceiling crevice suddenly fell to the ground 1926 | -10/Mines | Found a hidden stash of uninstalled traps 1960 | -10/Mines | Discovered new exit (range 8) 1984 | -10/Mines | Escorted by a lone wolf Derelict 2241 | -10/Mines | Discovered new exit (range 6) 2464 | -10/Mines | Discovered new exit (range 3) 2710 | -10/Mines | Entered Materials 2710 | -9/Materials | Accompanied by 1 ally 2710 | -9/Materials | Evolved 2 slots: Propulsion x1, Weapon x1 2711 | -9/Materials | Identified exit to Mines 2900 | -9/Materials | Discovered new exit (range 11) 3017 | -9/Materials | Build established: Gunner 3432 | -9/Materials | Repaired Huge Storage Unit 3509 | -9/Materials | Loaded intel: 17 interactive machine locations 3540 | -9/Materials | Learned Recycling recycling unit intel 3574 | -9/Materials | Identified exit to Materials 3575 | -9/Materials | Learned Storage stockpile data 3659 | -9/Materials | Destroyed 7 combat bots 3918 | -9/Materials | Entered Storage 3941 | -9/Storage | Met 01-MTF 4076 | -9/Storage | Learned location of Armory (-3) 4354 | -9/Storage | Identified exit to Garrison 4354 | -9/Storage | Entered Garrison 4354 | -9/Garrison | Accompanied by 1 ally (01-MTF) 4357 | -9/Garrison | 01-MTF left 4440 | -9/Garrison | Triggered checkpoint 4499 | -9/Garrison | Lost 3 parts (2n1u) 4524 | -9/Garrison | Garrison Relay disabled 4628 | -9/Garrison | Triggered checkpoint 4868 | -9/Garrison | Discovered exit to Materials (range 10) 5196 | -9/Garrison | Discovered exit to Materials (range 4) 5242 | -9/Garrison | Triggered checkpoint 5493 | -9/Garrison | Build established: Mutant 5521 | -9/Garrison | Discovered exit to Materials (range 12) 5538 | -9/Garrison | Installed Relay Interface Framework 5565 | -9/Garrison | Entered Materials 5565 | -8/Materials | Evolved 2 slots: Propulsion x1, Utility x1 6088 | -8/Materials | Discovered new exit (range 12) 6198 | -8/Materials | Build established: Scavenger-Tank 6291 | -8/Materials | Discovered new exit (range 16) 6527 | -8/Materials | Lost 4 parts (2u2w) 6665 | -8/Materials | Identified exit to Garrison 6853 | -8/Materials | Build established: Mutant 7024 | -8/Materials | Learned location of 1 exit from Recycling 7092 | -8/Materials | Identified exit to Factory 7150 | -8/Materials | Learned location of 1 exit from Lower Caves 7305 | -8/Materials | Learned Factory stockpile data 7334 | -8/Materials | Core integrity fell below 50% 7343 | -8/Materials | Learned location of Zion (-7) 7392 | -8/Materials | Lost 3 parts (2n1w) 7393 | -8/Materials | Learned location of 2 exits from Factory 7452 | -8/Materials | Learned location of 1 exit from Recycling 7455 | -8/Materials | Entered Garrison 7535 | -8/Garrison | Triggered checkpoint 7605 | -8/Garrison | Garrison Relay disabled 7637 | -8/Garrison | Triggered checkpoint 7806 | -8/Garrison | Garrison Relay disabled 7824 | -8/Garrison | Triggered checkpoint 7874 | -8/Garrison | Garrison Relay disabled 7907 | -8/Garrison | Discovered new exit (range 10) 8005 | -8/Garrison | Discovered new exit (range 13) 8045 | -8/Garrison | Triggered checkpoint 8061 | -8/Garrison | Garrison Relay disabled 8146 | -8/Garrison | Expanded RIF knowledge: Signal Jamming 8196 | -8/Garrison | Entered Materials 8580 | -8/Materials | Build established: Bothacker-Gunner 8716 | -8/Materials | Learned 2 Storage zone layouts 8737 | -8/Materials | Learned location of 1 exit from Storage 8790 | -8/Materials | Learned location of 1 exit from Lower Caves 9288 | -8/Materials | Central database locked down 9326 | -8/Materials | Entered Factory 9326 | -7/Factory | Evolved 2 slots: Propulsion x1, Utility x1 9327 | -7/Factory | Identified exit to Factory 9327 | -7/Factory | Identified exit to Lower Caves 9412 | -7/Factory | Sucked down chute 9412 | -7/Factory | Entered Waste 9413 | -7/Waste | Met a frightened Derelict 9424 | -7/Waste | Spotted C-40 Crusher 9472 | -7/Waste | Spotted C-40 Crusher 9475 | -7/Waste | Spotted C-40 Crusher 9511 | -7/Waste | Spotted C-40 Crusher 9513 | -7/Waste | Spotted C-40 Crusher 9553 | -7/Waste | Spotted C-40 Crusher 9705 | -7/Waste | Discovered new exit (range 13) 9940 | -7/Waste | Destroyed C-40 Crusher 9964 | -7/Waste | Destroyed C-40 Crusher 10083 | -7/Waste | Destroyed C-40 Crusher 10096 | -7/Waste | Destroyed C-40 Crusher 10137 | -7/Waste | Destroyed C-40 Crusher 10273 | -7/Waste | Identified exit to Factory 10275 | -7/Waste | Entered Factory 10279 | -7/Factory | Discovered exit to Lower Caves (range 10) 10622 | -7/Factory | Discovered exit to Lower Caves (range 15) 12205 | -7/Factory | Learned location of 1 exit from Cetus 12333 | -7/Factory | Learned 2 Hub_04(d) zone layouts 12357 | -7/Factory | Learned Factory emergency access door positions 12372 | -7/Factory | Learned Hub_04(d) security intel 12399 | -7/Factory | Loaded intel: 52 interactive machine locations 12429 | -7/Factory | Identified exit to Garrison 12436 | -7/Factory | Learned location of 1 exit from Proximity Caves 12468 | -7/Factory | Entered Garrison 12468 | -7/Garrison | Accompanied by 2 allies 12562 | -7/Garrison | Triggered checkpoint 12610 | -7/Garrison | Garrison Relay disabled 12617 | -7/Garrison | Lost 4 parts (2n2w) 12635 | -7/Garrison | Garrison Relay disabled 12787 | -7/Garrison | Expanded RIF knowledge: Patrol Navigation 12832 | -7/Garrison | Triggered checkpoint 12973 | -7/Garrison | Discovered new exit (range 12) 12983 | -7/Garrison | Identified exit to Factory 12985 | -7/Garrison | Entered Factory 12985 | -7/Factory | Accompanied by 1 ally 13330 | -7/Factory | Central database locked down 13363 | -7/Factory | Discovered exit to Factory (range 16) 13744 | -7/Factory | Discovered exit to Factory (range 5) 14338 | -7/Factory | Identified exit to Garrison 14342 | -7/Factory | Entered Garrison 14383 | -7/Garrison | Learned Factory security intel 14390 | -7/Garrison | Triggered checkpoint 14432 | -7/Garrison | Garrison Relay disabled 14495 | -7/Garrison | Discovered exit to Factory (range 29) 14495 | -7/Garrison | Discovered exit to Factory (range 52) 14495 | -7/Garrison | Discovered exit to Factory (range 49) 14602 | -7/Garrison | Triggered checkpoint 14748 | -7/Garrison | Garrison Relay disabled 14769 | -7/Garrison | Expanded RIF knowledge: Zone Cloak 14843 | -7/Garrison | Entered Factory 14843 | -6/Factory | Evolved 2 slots: Propulsion x1, Utility x1 15140 | -6/Factory | Build established: Bothacker-Skirmisher 15617 | -6/Factory | Discovered new exit (range 16) 15633 | -6/Factory | Identified exit to Factory 15927 | -6/Factory | Discovered exit to Factory (range 6) 16562 | -6/Factory | Identified exit to Garrison 16647 | -6/Factory | Entered Garrison 16705 | -6/Garrison | Garrison Relay disabled 16717 | -6/Garrison | Triggered checkpoint 16950 | -6/Garrison | Build established: Bothacker-Tank 16970 | -6/Garrison | Triggered checkpoint 17114 | -6/Garrison | Discovered exit to Factory (range 11) 17137 | -6/Garrison | Triggered checkpoint 17150 | -6/Garrison | Garrison Relay disabled 17177 | -6/Garrison | Expanded RIF knowledge: Command Fork 17206 | -6/Garrison | Expanded RIF knowledge: Program Shield 17301 | -6/Garrison | Triggered checkpoint 17378 | -6/Garrison | Garrison Relay disabled 17471 | -6/Garrison | Discovered exit to Factory (range 10) 17705 | -6/Garrison | Triggered checkpoint 17795 | -6/Garrison | Discovered exit to Factory (range 13) 17818 | -6/Garrison | Entered Factory 17818 | -5/Factory | Accompanied by 3 allies 17818 | -5/Factory | Evolved 2 slots: Power x1, Utility x1 17859 | -5/Factory | Discovered new exit (range 4) 17861 | -5/Factory | Identified exit to Factory 18323 | -5/Factory | Identified exit to Garrison 18323 | -5/Factory | Entered Garrison 18323 | -5/Garrison | Accompanied by 2 allies 18351 | -5/Garrison | Triggered checkpoint 18373 | -5/Garrison | Garrison Relay disabled 18510 | -5/Garrison | Triggered checkpoint 18519 | -5/Garrison | Triggered checkpoint 18587 | -5/Garrison | Lost 4 allies 18623 | -5/Garrison | Build established: Botlord-Gunner 18628 | -5/Garrison | Expanded RIF knowledge: Robot Detection 18679 | -5/Garrison | Discovered new exit (range 13) 18689 | -5/Garrison | Triggered checkpoint 18720 | -5/Garrison | Garrison Relay disabled 18733 | -5/Garrison | Garrison Relay disabled 18850 | -5/Garrison | Triggered checkpoint 18901 | -5/Garrison | Lost 3 allies 18919 | -5/Garrison | Discovered new exit (range 12) 18933 | -5/Garrison | Triggered checkpoint 18983 | -5/Garrison | Discovered new exit (range 74) 18983 | -5/Garrison | Discovered new exit (range 20) 18983 | -5/Garrison | Discovered new exit (range 54) 19175 | -5/Garrison | Garrison Relay disabled 19261 | -5/Garrison | Triggered checkpoint 19293 | -5/Garrison | Triggered checkpoint 19404 | -5/Garrison | Spotted B-75 Beast 19441 | -5/Garrison | Hijacked Beast 6a control node with streamctrl_high 19466 | -5/Garrison | Allies destroyed Beast 6a 19533 | -5/Garrison | Triggered checkpoint 19546 | -5/Garrison | Garrison Relay disabled 19670 | -5/Garrison | Identified exit to Factory 19684 | -5/Garrison | Entered Factory 19684 | -5/Factory | Accompanied by 6 allies 19841 | -5/Factory | Lost 4 allies 20202 | -5/Factory | Build established: Botlord-Skirmisher 20262 | -5/Factory | Discovered new exit (range 5) 20265 | -5/Factory | Identified exit to Upper Caves 20313 | -5/Factory | Garrison activated, responded to threat 20381 | -5/Factory | Watched by a mysterious "MATRIX" hacker 20903 | -5/Factory | Discovered exit to Factory (range 10) 21055 | -5/Factory | Discovered exit to Upper Caves (range 12) 21143 | -5/Factory | P-70 Sage assimilated allied Machinist 6a 21842 | -5/Factory | Discovered exit to Factory (range 4) 22212 | -5/Factory | System corruption reached 10% 22219 | -5/Factory | Learned location of Extension (-4) 22297 | -5/Factory | Learned Quarantine stockpile data 22323 | -5/Factory | Loaded intel: 82 trap records 22340 | -5/Factory | Learned Factory trap positions 22367 | -5/Factory | Learned location of 2 exits from Proximity Caves 22540 | -5/Factory | Build established: Bothacker-Skirmisher 22547 | -5/Factory | Identified exit to Garrison 22582 | -5/Factory | Entered Garrison 22582 | -5/Garrison | Accompanied by 1 ally 22608 | -5/Garrison | Triggered checkpoint 22744 | -5/Garrison | Triggered checkpoint 22877 | -5/Garrison | Discovered exit to Factory (range 8) 22894 | -5/Garrison | Triggered checkpoint 22898 | -5/Garrison | Spotted Striker 22899 | -5/Garrison | Spotted Striker 22906 | -5/Garrison | Found embedded Infiltrators 22932 | -5/Garrison | Core integrity fell below 50% 22932 | -5/Garrison | Destroyed Striker 22943 | -5/Garrison | Destroyed Striker 22965 | -5/Garrison | Build established: Bothacker-Tank 23113 | -5/Garrison | Garrison Relay disabled 23286 | -5/Garrison | Triggered checkpoint 23300 | -5/Garrison | Triggered checkpoint 23475 | -5/Garrison | Discovered exit to Factory (range 10) 23496 | -5/Garrison | Triggered checkpoint 23536 | -5/Garrison | Garrison Relay disabled 23591 | -5/Garrison | Build established: Botlord-Tank 23713 | -5/Garrison | Discovered exit to Factory (range 10) 23758 | -5/Garrison | Triggered checkpoint 23771 | -5/Garrison | Garrison Relay disabled 23844 | -5/Garrison | Expanded RIF knowledge: Structural Interface 23910 | -5/Garrison | Entered Factory 23910 | -4/Factory | Accompanied by 2 allies 23910 | -4/Factory | Evolved 2 slots: Power x1, Propulsion x1 23911 | -4/Factory | Identified exit to Upper Caves 23911 | -4/Factory | Identified exit to Extension 23912 | -4/Factory | Loaded intel: 87 trap records 24001 | -4/Factory | Spotted B-86 Titan 24714 | -4/Factory | Lost 4 parts (2p1n1w) 24819 | -4/Factory | Sucked down chute 24819 | -4/Factory | Entered Waste 24820 | -4/Waste | Met a frightened Derelict 24850 | -4/Waste | Spotted C-40 Crusher 24869 | -4/Waste | Spotted C-40 Crusher 24891 | -4/Waste | Spotted C-40 Crusher 24954 | -4/Waste | Spotted C-40 Crusher 24967 | -4/Waste | Spotted C-40 Crusher 24967 | -4/Waste | Spotted C-40 Crusher 24980 | -4/Waste | Discovered new exit (range 16) 24992 | -4/Waste | Build established: Botlord-Gunner 25088 | -4/Waste | Destroyed C-40 Crusher 25108 | -4/Waste | Found Unknown Protection 25254 | -4/Waste | Identified exit to Factory 25256 | -4/Waste | Entered Factory 25990 | -4/Factory | Garrison activated, responded to threat 25995 | -4/Factory | System corruption reached 10% 26042 | -4/Factory | Lost 3 parts (1n2w) 26364 | -4/Factory | Lost 4 parts (1p1u2w) 26856 | -4/Factory | Lost 3 allies 26949 | -4/Factory | Build established: Botlord-Skirmisher 27263 | -4/Factory | Build established: Botlord-Gunner 27291 | -4/Factory | Entered Extension 27775 | -4/Extension | Lost 4 parts (2n2u) 28433 | -4/Extension | Rescued a captive Derelict 28454 | -4/Extension | Rescued a captive Derelict 28498 | -4/Extension | Rescued a captive Derelict 28500 | -4/Extension | Rescued a captive Derelict 28663 | -4/Extension | Rescued a captive Derelict 28915 | -4/Extension | Build established: Botlord-Skirmisher 29198 | -4/Extension | Spotted B-86 Titan 29218 | -4/Extension | Allies destroyed B-86 Titan 29226 | -4/Extension | Spotted B-86 Titan 29245 | -4/Extension | Allies destroyed B-86 Titan 29266 | -4/Extension | Build established: Botlord-Gunner 29274 | -4/Extension | Lost 3 allies 29323 | -4/Extension | Rescued A7 29818 | -4/Extension | Build established: Botlord-Skirmisher 29856 | -4/Extension | Rescued a captive Derelict 29979 | -4/Extension | Rescued a captive Derelict 29981 | -4/Extension | Rescued a captive Derelict 30192 | -4/Extension | Discovered new exit (range 10) 30194 | -4/Extension | Discovered new exit (range 6) 30930 | -4/Extension | Entered Cetus 30930 | -4/Cetus | Accompanied by 11 allies (A7) 30931 | -4/Cetus | Identified exit to Archives 30935 | -4/Cetus | Acquired a Cetus Manufacturing Module code from A7 30971 | -4/Cetus | Spotted Cetus Guard 30971 | -4/Cetus | Spotted Cetus Guard 30971 | -4/Cetus | Spotted Cetus Guard 30971 | -4/Cetus | Spotted Cetus Guard 30975 | -4/Cetus | Allies destroyed Cetus Guard 30977 | -4/Cetus | Allies destroyed Cetus Guard 31001 | -4/Cetus | Allies destroyed Cetus Guard 31003 | -4/Cetus | Destroyed Cetus Guard 31051 | -4/Cetus | Started Cetus Manufacturing Module 31076 | -4/Cetus | Manufactured an Enhanced Grunt 31079 | -4/Cetus | Escorted A7 to Cetus Mainframe 31101 | -4/Cetus | Manufactured an Enhanced Grunt 31121 | -4/Cetus | Spotted Cetus Guard 31121 | -4/Cetus | Spotted Cetus Guard 31121 | -4/Cetus | Allies destroyed Cetus Guard 31123 | -4/Cetus | Spotted Cetus Guard 31126 | -4/Cetus | Manufactured an Enhanced Grunt 31127 | -4/Cetus | Allies destroyed Cetus Guard 31141 | -4/Cetus | Destroyed Cetus Guard 31141 | -4/Cetus | Spotted Cetus Guard 31151 | -4/Cetus | Manufactured an Enhanced Grunt 31151 | -4/Cetus | Allies destroyed Cetus Guard 31166 | -4/Cetus | Discovered new exit (range 16) 31170 | -4/Cetus | Lost 3 allies 31173 | -4/Cetus | Met Revision 17 31176 | -4/Cetus | Manufactured an Enhanced Grunt 31209 | -4/Cetus | Build established: Commander-Tank 31399 | -4/Cetus | Entered Archives 31399 | -4/Archives | Accompanied by 10 allies (A7) 31404 | -4/Archives | Received a hacking code to weaken MAIN.C 31479 | -4/Archives | Discovered new exit (range 16) 31541 | -4/Archives | Discovered new exit (range 16) 31560 | -4/Archives | Discovered new exit (range 16) 31861 | -4/Archives | Build established: Scavenger-Tank 31903 | -4/Archives | Identified Damper Plating 32858 | -4/Archives | Entered Hub_04(d) 32858 | -4/Hub_04(d) | Accompanied by 7 allies 33162 | -4/Hub_04(d) | Discovered new exit (range 13) 33195 | -4/Hub_04(d) | Discovered new exit (range 15) 33272 | -4/Hub_04(d) | Discovered new exit (range 8) 33413 | -4/Hub_04(d) | Network Hub disabled 33456 | -4/Hub_04(d) | Spotted Lightning 33456 | -4/Hub_04(d) | Spotted Lightning 33459 | -4/Hub_04(d) | Spotted Lightning 33491 | -4/Hub_04(d) | Destroyed Lightning 33508 | -4/Hub_04(d) | Destroyed Lightning 33537 | -4/Hub_04(d) | Destroyed Lightning 33551 | -4/Hub_04(d) | Found Prototype Device 33551 | -4/Hub_04(d) | Identified Exp. EM Shield 33554 | -4/Hub_04(d) | Found Prototype Device 33554 | -4/Hub_04(d) | Identified Exp. Phase Shifter 33565 | -4/Hub_04(d) | Found Exp. Phase Shifter 33568 | -4/Hub_04(d) | Found Prototype Processor 33568 | -4/Hub_04(d) | Identified Exp. Targeting Computer 34042 | -4/Hub_04(d) | Entered Research 34042 | -3/Research | Evolved 2 slots: Propulsion x1, Utility x1 34242 | -3/Research | Revision forces began assault on 0b10 34311 | -3/Research | Met up with Revision 17++ 34399 | -3/Research | Found Prototype Device 34407 | -3/Research | Identified Adv. Kinecellerator 34647 | -3/Research | Found Quantum Capacitor 34725 | -3/Research | Discovered new exit (range 5) 34726 | -3/Research | Build established: Scavenger-Gunner 34742 | -3/Research | Research terminal network offline 34818 | -3/Research | Identified exit to Quarantine 34826 | -3/Research | Entered Quarantine 35165 | -3/Quarantine | Central database locked down 35230 | -3/Quarantine | Found Alien Artifact 35382 | -3/Quarantine | Identified Core Reset Matrix 35606 | -3/Quarantine | Build established: Scavenger-Skirmisher 35710 | -3/Quarantine | Discovered new exit (range 5) 35713 | -3/Quarantine | Identified exit to Research 35832 | -3/Quarantine | Spotted Alpha 7 36027 | -3/Quarantine | Learned Section 7 machine intel 36094 | -3/Quarantine | Learned location of Section 7 (-2) 36163 | -3/Quarantine | Repaired Hvy. Shield Leg 36263 | -3/Quarantine | Learned Research emergency access door positions 36332 | -3/Quarantine | Learned Research emergency access door positions 36707 | -3/Quarantine | Cryocooling Duct disabled 36722 | -3/Quarantine | Ambient heat levels rising (+20) 36722 | -3/Quarantine | Non-combat units ordered to evacuate 36869 | -3/Quarantine | Cryocooling Duct disabled 36884 | -3/Quarantine | Ambient heat levels rising (+20) 36884 | -3/Quarantine | Combat units ordered to evacuate 36984 | -3/Quarantine | Quarantine Guard activated 37123 | -3/Quarantine | Spotted Quarantine Guard 37139 | -3/Quarantine | Destroyed Quarantine Guard 37172 | -3/Quarantine | Spotted Quarantine Guard 37172 | -3/Quarantine | Spotted Quarantine Guard 37188 | -3/Quarantine | Destroyed Quarantine Guard 37195 | -3/Quarantine | Destroyed Quarantine Guard 37197 | -3/Quarantine | Spotted Quarantine Guard 37206 | -3/Quarantine | Destroyed Quarantine Guard 37207 | -3/Quarantine | Spotted Quarantine Guard 37210 | -3/Quarantine | Destroyed Quarantine Guard 37300 | -3/Quarantine | Spotted Quarantine Guard 37319 | -3/Quarantine | Destroyed Quarantine Guard 37424 | -3/Quarantine | Spotted Quarantine Guard 37492 | -3/Quarantine | Destroyed Quarantine Guard 37498 | -3/Quarantine | Spotted Quarantine Guard 37503 | -3/Quarantine | Destroyed Quarantine Guard 37586 | -3/Quarantine | Spotted Quarantine Guard 37600 | -3/Quarantine | Destroyed Quarantine Guard 37646 | -3/Quarantine | Destroyed Alpha 7 37659 | -3/Quarantine | Found Corrupted Prototype Ballistic Gun 37675 | -3/Quarantine | Lost 5 parts (2p2n1w) 37779 | -3/Quarantine | Identified Multirail 37958 | -3/Quarantine | Build established: Scavenger-Tank 38140 | -3/Quarantine | Found Alien Energy Cannon 38140 | -3/Quarantine | Identified Core Cannon 38376 | -3/Quarantine | Spotted Quarantine Guard 38396 | -3/Quarantine | Destroyed Quarantine Guard 38439 | -3/Quarantine | Spotted Quarantine Guard 38456 | -3/Quarantine | Destroyed Quarantine Guard 38510 | -3/Quarantine | System corruption reached 10% 38624 | -3/Quarantine | System corruption reached 30% 38658 | -3/Quarantine | Spotted Quarantine Guard 38767 | -3/Quarantine | Found Alien Artifact 38799 | -3/Quarantine | Found Alien Artifact 38799 | -3/Quarantine | Identified Dimensional Node Initializer 38799 | -3/Quarantine | Initialized slip node 38806 | -3/Quarantine | Found Alien Artifact 38810 | -3/Quarantine | Found Alien Artifact 38820 | -3/Quarantine | Found Dimensional Node Initializer 38886 | -3/Quarantine | Identified Transdimensional Reconstructor 38886 | -3/Quarantine | Identified Hpw. Transdimensional Reconstructor 38889 | -3/Quarantine | Identified Subatomic Replicator 38894 | -3/Quarantine | Build established: Scavenger-Gunner 38984 | -3/Quarantine | Found Alien Artifact 38984 | -3/Quarantine | Identified Phase Redirector 39076 | -3/Quarantine | Entered Research 39076 | -2/Research | Evolved 2 slots: Utility x2 39077 | -2/Research | Identified exit to Access 39536 | -2/Research | Discovered new exit (range 15) 39574 | -2/Research | Unchained authorized (QV-33N) 39576 | -2/Research | Identified exit to Testing 39577 | -2/Research | Entered Testing 39642 | -2/Testing | Found Prototype Ballistic Cannon 39642 | -2/Testing | Identified Omega Cannon 39815 | -2/Testing | Spotted Striker 39874 | -2/Testing | Found Prototype Ballistic Cannon 39874 | -2/Testing | Identified Perforator 40020 | -2/Testing | Rewired PH-RYS5K89PBP 40291 | -2/Testing | Scanned by Researcher 40360 | -2/Testing | Found Prototype Device 40360 | -2/Testing | Identified 2N-1CE's Frost Array 40549 | -2/Testing | Found Prototype Device 40549 | -2/Testing | Identified AEGIS Remote Shield 40632 | -2/Testing | Found Prototype Protection 40632 | -2/Testing | Identified SHELL Armor 40678 | -2/Testing | Spotted Fortress 40761 | -2/Testing | Discovered new exit (range 6) 40761 | -2/Testing | Discovered new exit (range 7) 40767 | -2/Testing | Identified exit to Protoforge 40771 | -2/Testing | Identified exit to Section 7 40923 | -2/Testing | Entered Section 7 40924 | -2/Section 7 | Loaded intel: 140 machine locations 40938 | -2/Section 7 | Build established: Scavenger-Tank 40946 | -2/Section 7 | Found Alien Artifact 40946 | -2/Section 7 | Identified Integrated Reactor 40946 | -2/Section 7 | Installed Integrated Reactor, increased core energy generation (+10) 40998 | -2/Section 7 | Found Alien Artifact 40998 | -2/Section 7 | Identified Spacefold Activator 41096 | -2/Section 7 | Spotted S7 Guard 41105 | -2/Section 7 | Found Alien Artifact 41106 | -2/Section 7 | Garrison activated, responded to threat 41151 | -2/Section 7 | Destroyed S7 Guard 41173 | -2/Section 7 | First assault squad dispatched 41356 | -2/Section 7 | Crushed by falling debris 41606 | -2/Section 7 | Spotted S7 Guard 41672 | -2/Section 7 | Destroyed S7 Guard 41680 | -2/Section 7 | Found Alien Artifact 41680 | -2/Section 7 | Identified Navigation Efficiency Matrix 41680 | -2/Section 7 | Installed Navigation Efficiency Matrix, process failed with unexpected side effects 41857 | -2/Section 7 | Spotted B-90 Cyclops 41873 | -2/Section 7 | Spotted S7 Guard 42006 | -2/Section 7 | Found Alien Artifact 42006 | -2/Section 7 | Identified Core Physics Calibrator 42080 | -2/Section 7 | Build established: Scavenger-Gunner 42103 | -2/Section 7 | Discovered exit to Access (range 2) 42104 | -2/Section 7 | Entered Access 42104 | -1/Access | Evolved 2 slots: Utility x1, Weapon x1 42104 | -1/Access | Identified Core Regenerator 42104 | -1/Access | Used Core Regenerator, restored core integrity (+0) 42354 | -1/Access | First assault squad dispatched 42498 | -1/Access | Destroyed 14 combat bots 42707 | -1/Access | Spotted B-99 Colossus 42721 | -1/Access | Spotted B-99 Colossus 42733 | -1/Access | Discovered new exit (range 5) 42737 | -1/Access | Identified exit to Command 42738 | -1/Access | Entered Command 42764 | -1/Command | Lost 3 parts (1p1u1w) 42988 | -1/Command | First assault squad dispatched 43201 | -1/Command | Found Prototype Processor 43201 | -1/Command | Identified Exp. Core Analyzer 43287 | -1/Command | System corruption reached 10% 43517 | -1/Command | Found Quantum Capacitor 43570 | -1/Command | Failed to warp due to unstable space 43621 | -1/Command | Lost 3 parts (3w) 43901 | -1/Command | Lost 5 parts (1p3u1w) 43998 | -1/Command | Lost 5 parts (1p1n2u1w) 44157 | -1/Command | Core integrity fell below 50% 44272 | -1/Command | Build established: Mutant 44425 | -1/Command | Core integrity fell below 20% 44446 | -1/Command | Spotted B-99 Colossus 44449 | -1/Command | Discovered new exit (range 2) 44450 | -1/Command | Spotted Executioner 44450 | *** | Escaped! Last Messages --------------- 44429_ P-80 Master resets O-32 Director, system corruption cleaned. 44439_ UJW3QLCL1|O&O0BRU4YY& H 44440_ Imp. Thunder Leg destroyed. 44443_ Terminal disabled. 44446_ Navigation matrix triggers involuntary quantum shift. 44446_ Knocked back. 44446_ Slug penetrates Access Shell. 44446_ Slug penetrates Wall. 44447_ Triggered Stasis Trap. 44447_ A bubble of rippling energy engulfs the area. 44447_ Field strength at 85. 44449_ EXIT=FOUND 44449_ Spacefolded through Access Shell. 44450_ Slug penetrates Access Shell. 44450_ Penetrated by Slug. 44450_ Slug penetrates Access Shell. [Achievement: Leg Day] Map ----- +----------------------------------------------------+ | ???????# #?## #????# #?????# | | ???????#] %[ #?#"^^^ #????# #?????# | | ???#########+%###### ###### #?????# | | ???+ + #?????# | | ???+ # "" #?????# | | ???+ + """" #?????# | | ???+ * * # """" #???### | | ???+ %= # "" ####"## | | ???####### = # # | | ?????????# # # % "" | | ?????????# # " !% " | | ?????????# ############## [ "" | | ?????????# """ T"""" #######%######=*% " | | ?????????# """"""""""" % /!%= | | ?????????# ############## #######%### | | ?????????# #????????????# #??????# #? | | ?????????# #????????????# #???????##? | | ########## #????????????##########+###???????? | | # ## #??????????????????# #???????? | | # ## #???##############?# #???????? | | # ## #???# % #?# #???????? | | # ## #???# #?# #???????? | | # + #???# #?# #???????? | | # # ###???# """""" #?# #???????? | | # # #?????# ??" " #?########???????? | | ####+#### #?????????" @" " #????????????????? | | ??# #??# ####?????????" "" ^ #????????????????? | | ??# #??# #????????????" #????????????????? | | ??# #??# #????????????""""" #????????????????? | | ??# #### #????????????????? #????????????????? | | ??# ########?????????? BB#????????????????? | | ??# %=# #??????????? BB#????????????????? | | ??# ! # #???????????####????????????????? | | ??# # ]=/#???????????????????????????????? | | ??# # ]//#???????????????????????????????? | | ??# # ]/ #???????????????????????????????? | | ??# # #???????????????????????????????? | | ??# + #???????????????????????????????? | | ??# ###### #???????????????????????????????? | | ??# #????# #???????????????????????????????? | | ??# =#????# #???????????????????????????????? | | ??# %#????# #???????????????????????????????? | | ??# ????+ #?????#++++#????????????????????? | | ??# #????# #?????# #????????????????????? | | ??# #???###/########### #????????????????????? | | ??# ????# = " #????????????????????? | | ??+ ????# " #????????????????????? | | ??+ ????# % #????????????????????? | | ??+ ????# % # #????????????????????? | | ??? ?????# # #????????????????????? | +----------------------------------------------------+ Best States ------------- Heat Dissipation 187 Coolant Potential 100 Energy Generation 75 Energy Capacity 850 Matter Stores 422 Matter Capacity 700 Sight Range 18 Robot Scan Range 16 Terrain Scan Density 10 Jamming Range 12 Power Amplification 30 Base Temperature (-) 200 EM Shielding 4 Armor Coverage 1600 Resistance: EM 90 Phase Shifting 20 Evasion (%) 97 Targeting Accuracy 12 Target Analysis 8 Core Analysis 8 Particle Charging 25 Kinecelleration 50 Offensive Hacking 14 Relay Coupler Types 4 Relay Coupler Value 75 Item Schematics ----------------- Cryofiber Web | -8/Materials | Hacked Hcp. Storage Unit | -8/Materials | Hacked Adv. Reaction Control System | -6/Factory | Hacked Thunder Leg | -5/Factory | Hacked Exp. Matter Compressor | -2/Testing | Archive Prc. Energy Filter | -2/Testing | Archive Graviton Cannon | -2/Testing | Archive Enh. Gamma Bomb Array | -2/Testing | Archive Gravity Flail | -2/Testing | Archive Robot Schematics ------------------ G-73 Enforcer | -2/Testing | Archive R-06 Scavenger | -2/Testing | Archive A-02 Transporter | -2/Testing | Archive Fabricated ------------ Nothing Repaired ---------- Huge Storage Unit | 72% | -9/Materials Hvy. Shield Leg | 13% | -3/Quarantine Studied --------- Particle Gun | -9/Materials | Hacked Field Laser | -8/Materials | Hacked Titanium Leg | -8/Materials | Hacked Carbon-fiber Leg | -8/Materials | Hacked Imp. Carbon-fiber Leg | -7/Factory | Hacked Hvy. Laser | -7/Factory | Hacked Imp. Titanium Leg | -7/Factory | Hacked Hvy. Ion Cannon | -7/Factory | Hacked Thermic Laser | -6/Factory | Hacked Arm. Leg | -6/Factory | Hacked Hvy. Missile Launcher | -6/Factory | Hacked Dispersion Rifle | -3/Quarantine | Hacked Biometal Leg | -3/Quarantine | Hacked Alien Tech Used ----------------- Core Cannon Dimensional Node Initializer Phase Redirector Integrated Reactor Spacefold Activator Navigation Efficiency Matrix Core Physics Calibrator Core Regenerator Transdimensional Reconstructor Achievements -------------- Hackathon Leg Day Pwned Zeroed Repercussions Challenges ------------ None Game ------ Seed WavePoweredDetector Manual? 0 Play Time 07:15:59 Cumulative 454.9 hours Start 2026.09.22 @ 14:30:31 End 2026.09.23 @ 12:31:23 Sessions 3 Manual Loads 0 Difficulty Rogue Special Mode None Game No. 382 Rogue 328 Adventurer 54 Explorer 0 Win Type 0 Total 26 Types 16/2/1/1/1/1/1/1/1/1 Lore% 84 Gallery% 73 Achievement% 74 Wizard Run 0 Options --------- Layout 1 ASCII 0 Keyboard 0 Movement Mouse Keybinds 1 Fullscreen 2 Font 32/Tamsyn Map View 50x35 Zoom Use 0% Tactical HUD 1 Map Filters NONE Filters NONE Steam 1 RUN: 960b85ce-6397-45f5-8c42-9ef0ed54b0bd